Workbook

Sheet DHCS Only (hidden)
A1: For DHCS use only.
A2: Click button to lock or unlock all sheets for editing.
A3: This tab should be hidden when not in use.

Sheet Instructions
B1: Annual Mental Health Services Act Revenue and Expenditure Report
B2: Fiscal Year 2016-17
B3: ARER Instructions
B5: • For detailed instructions, see Enclosure 2: Instruction Manual for Fiscal Year 2016-17 of the MHSA Annual Revenue and Expenditure Report.
B6: • These worksheets are used to report the total expenditures for each MHSA-funded program. Expenditures should be recognized in the period that the fund liability is incurred. (Accounting Standards and Procedures for Counties, State Controller’s Office (SCO), May 2014).
B7: • Counties must report any expenditure that occurred between July 1, 2016 and June 30, 2017, on the appropriate component worksheet.
B8: • Counties should reflect total (gross) program expenditures for each MHSA program on the MHSA Component Expenditure Worksheets.
B10: Step 1: Complete the Information worksheet | C10: The information provided on the Information worksheet automatically links to worksheets in the ARER. This worksheet eliminates the redundant entry of county name, code, and date on worksheets.
B12: Step 2: Complete section one and two of the Component Summary worksheet | C12: Section one provides the total amount of unspent funds available from prior fiscal years. These amounts should match the amount of unspent funds previously reported in the FY 2015-16 ARER, Unspent MHSA Funds in the Local Mental Health Service (MHS) Fund (Section 6).
C13: Section two provides the total amount of revenue received and deposited into the local MHS Fund from July 1, 2016 through June 30, 2017.
C14: Skip section three through seven of the Component Summary worksheet. These sections are linked to the remaining component worksheets and will auto populate as the county completes each individual worksheet.
B15: Step 3: Complete each component and adjustment worksheet | C15: In general, counties will enter expenditure data in the blue boxes throughout the workbook. Cells shaded gray will require no data entry because it is an excel formula or data is not relevant for that particular cell.
B16: Step 4: Review the Component Summary worksheet | C16: Counties should verify that sections three through seven of the Component Summary worksheet accurately reflect the expenditures reported on the component and adjustment worksheets.

Sheet 1. Information
B1: Annual Mental Health Services Act Revenue and Expenditure Report
B2: Fiscal Year 2016-17
B3: Information
B5: 1 | C5: Date: | D5: 2018-04-02
B6: 2 | C6: County:
B7: 3 | C7: County Code: | D7: =IF(ISBLANK(D6),"",VLOOKUP(D6,Info_County_Code,2)) -> 
B8: 4 | C8: Address: | D8: 720 Wood Street
B9: 5 | C9: City: | D9: Eureka CA
B10: 6 | C10: Zip: | D10: 95501
B11: 7 | C11: County Population: Over 200,000? (Yes or No) | D11: =IF(ISBLANK(D6),"",VLOOKUP(D6,County_Population,5,FALSE)) -> 
B12: 8 | C12: Name of Preparer: | D12: Melissa Chilton
B13: 9 | C13: Title of Preparer: | D13: Budget Specialist
B14: 10 | C14: Preparer Contact Email: | D14: mchilton@co.humboldt.ca.us
B15: 11 | C15: Preparer Contact Telephone | D15: (707) 441-5446

Sheet 2. Component Summary
B1: Annual Mental Health Services Act Revenue and Expenditure Report
B2: Fiscal Year 2016-17
B3: Comopnent Summary
B5: County: | D5: =IF(ISBLANK('1. Information'!D6),"",'1. Information'!D6) ->  | F5: Date: | G5: =IF(ISBLANK('1. Information'!D5),"",'1. Information'!D5) -> 2018-04-02
E7: A
E8: % of revenue
B9: 1 | C9: Total Annual Planning Costs | D9: ='3. CSS'!F14+'4. PEI'!F14+'5. INN'!F14+'6. WET'!F14+'7. CFTN'!F14 -> 110952.07 | E9: =IF(AND(N33>0,D9>0),D9/N33,"") -> 0.01679186238 | F9: Total MHSA costs for planning for all components may not exceed 5 percent of the total annual MHSA revenues received by the County
B10: 2 | C10: Total Evaluation Costs | D10: ='3. CSS'!F15+'4. PEI'!F15+'5. INN'!F17+'6. WET'!F15+'7. CFTN'!F16+'7. CFTN'!F17 -> 48535.58
B11: 3 | C11: Total Administration | D11: ='3. CSS'!F16+'4. PEI'!F16+'5. INN'!F15+'5. INN'!F16+'6. WET'!F16+'7. CFTN'!F18+'7. CFTN'!F19 -> 167163.42
D13: A | E13: B | F13: C | G13: D | H13: E | I13: F | J13: G | K13: H | L13: I | M13: J | N13: K
C14: (Click component title to jump to worksheet) | D14: CSS | E14: PEI | F14: INN | G14: WET | H14: CFTN | I14: TTACB | J14: WET RP | K14: PEI SW | L14: MHSA HP | M14: PR | N14: TOTAL
B15: SECTION 1: Unspent MHSA Funds Available in the MHS Fund From Prior Fiscal Years
B16: 1 | C16: Local Prudent Reserve | M16: 1168816 | N16: =M16 -> 1168816
B17: 2 | C17: FY 2006-07 | N17: =SUM(D17:L17) -> 0
B18: 3 | C18: FY 2007-08 | G18: 311631 | N18: =SUM(D18:L18) -> 311631
B19: 4 | C19: FY 2008-09 | N19: 0
B20: 5 | C20: FY 2009-10 | N20: 0
B21: 6 | C21: FY 2010-11 | N21: 0
B22: 7 | C22: FY 2011-12 | G22: 5712 | N22: 5712
B23: 8 | C23: FY 2012-13 | F23: 177092 | N23: 177092
B24: 9 | C24: FY 2013-14 | F24: 223001 | N24: 223001
B25: 10 | C25: FY 2014-15 | E25: 1080939 | F25: 312150 | N25: 1393089
B26: 11 | C26: FY 2015-16 | D26: 183014 | E26: 1027368 | F26: 256842 | H26: 212380 | N26: 1679604
B27: 12 | C27: Interest | D27: =5370.29-5370.46+11498.87+2421.42 -> 13920.12 | E27: =10443.32+13382.44+11021.35+21712.66+162.98 -> 56722.75 | F27: =6583.74+7036.66+7143.62+7895.52 -> 28659.54 | G27: =2509.89+1930.05+754.38+1045.24 -> 6239.56 | H27: =1217.66-1217.62-975.23 -> -975.19 | M27: 14617.94 | N27: =SUM(D27:M27) -> 119184.72
B28: 13 | C28: TOTAL | D28: =SUM(D16:D27) -> 196934.12 | E28: 2165029.75 | F28: 997744.54 | G28: 323582.56 | H28: 211404.81 | I28: 0 | J28: 0 | K28: 0 | L28: 0 | M28: 1183433.94 | N28: =SUM(D28:M28) -> 5078129.72
B29: SECTION 2: MHSA Funds Received in FY 2016-17 (Revenue)
B30: 1 | C30: Transfer from Local Prudent Reserve | N30: =SUM(D30:M30) -> 0
B31: 2 | C31: FY 2016-17 MHSA Funds | D31: =+SUM(6528702.8-F31)*0.8 -> 4961814.128 | E31: =+SUM(6528702.8-F31)*0.2 -> 1240453.532 | F31: =6528702.8*0.05 -> 326435.14 | N31: =SUM(D31:M31) -> 6528702.8
B32: 3 | C32: FY 2016-17 Interest Earned on local MHS Fund | D32: =1249.81+5728.31 -> 6978.12 | E32: 38759.19 | F32: 14380.71 | G32: 1245.86 | M32: 17423.75 | N32: =SUM(D32:M32) -> 78787.63
B33: 4 | C33: TOTAL | D33: =SUM(D30:D32) -> 4968792.248 | E33: =SUM(E30:E32) -> 1279212.722 | F33: 340815.85 | G33: 1245.86 | H33: 0 | I33: 0 | J33: 0 | K33: 0 | L33: 0 | M33: 17423.75 | N33: =SUM(D33:M33) -> 6607490.43
B34: SECTION 3: Program Expenditures and Sources of Funding 2016-17
B35: 1 | C35: MHSA Funds
B36: 2 | C36: FY 2006-07 | G36: ='6. WET'!W20 -> 0 | N36: =SUM(D36:M36) -> 0
B37: 3 | C37: FY 2007-08 | G37: ='6. WET'!V20 -> 111007.44 | H37: ='7. CFTN'!V21 -> 0 | N37: =SUM(D37:M37) -> 111007.44
B38: 4 | C38: FY 2008-09 | F38: ='5. INN'!U20 -> 0 | G38: ='6. WET'!U20 -> 0 | H38: ='7. CFTN'!U21 -> 0 | I38: ='8. TTACB, WET RP, HP'!T14 -> 0 | J38: ='8. TTACB, WET RP, HP'!T15 -> 0 | K38: ='4. PEI'!U17 -> 0 | N38: 0
B39: 5 | C39: FY 2009-10 | F39: ='5. INN'!T20 -> 0 | G39: ='6. WET'!T20 -> 0 | H39: ='7. CFTN'!T21 -> 0 | I39: ='8. TTACB, WET RP, HP'!S14 -> 0 | J39: ='8. TTACB, WET RP, HP'!S15 -> 0 | K39: ='4. PEI'!T17 -> 0 | N39: 0
B40: 6 | C40: FY 2010-11 | F40: ='5. INN'!S20 -> 0 | G40: ='6. WET'!S20 -> 0 | H40: ='7. CFTN'!S21 -> 0 | I40: ='8. TTACB, WET RP, HP'!R14 -> 0 | J40: ='8. TTACB, WET RP, HP'!R15 -> 0 | K40: ='4. PEI'!S17 -> 0 | N40: 0
B41: 7 | C41: FY 2011-12 | F41: ='5. INN'!R20 -> 0 | G41: ='6. WET'!R20 -> 0 | H41: ='7. CFTN'!R21 -> 0 | I41: ='8. TTACB, WET RP, HP'!Q14 -> 0 | J41: ='8. TTACB, WET RP, HP'!Q15 -> 0 | K41: ='4. PEI'!R17 -> 0 | N41: 0
B42: 8 | C42: FY 2012-13 | F42: ='5. INN'!Q20 -> 177092 | G42: ='6. WET'!Q20 -> 0 | H42: ='7. CFTN'!Q21 -> 0 | J42: ='8. TTACB, WET RP, HP'!P15 -> 0 | N42: 177092
B43: 9 | C43: FY 2013-14 | F43: ='5. INN'!P20 -> 223001 | G43: ='6. WET'!P20 -> 0 | H43: ='7. CFTN'!P21 -> 0 | J43: ='8. TTACB, WET RP, HP'!O15 -> 0 | N43: 223001
B44: 10 | C44: FY 2014-15 | D44: ='3. CSS'!O24-SUM('3. CSS'!O20:O22) -> 0 | E44: ='4. PEI'!O21 -> 1080939 | F44: ='5. INN'!O20 -> 261030.92 | G44: ='6. WET'!O20 -> 0 | H44: ='7. CFTN'!O21 -> 0 | J44: ='8. TTACB, WET RP, HP'!N15 -> 0 | L44: ='8. TTACB, WET RP, HP'!N16 -> 0 | N44: 1341969.92
B45: 11 | C45: FY 2015-16 | D45: ='3. CSS'!N24-SUM('3. CSS'!N20:N22) -> 183014 | E45: ='4. PEI'!N21 -> 407298.17 | F45: ='5. INN'!N20 -> 0 | G45: ='6. WET'!N20 -> 0 | H45: ='7. CFTN'!N21 -> 156049.19 | J45: ='8. TTACB, WET RP, HP'!M15 -> 0 | L45: ='8. TTACB, WET RP, HP'!M16 -> 0 | N45: 746361.36
B46: 12 | C46: FY 2016-17 | D46: ='3. CSS'!M24-SUM('3. CSS'!M20:M22) -> 4061265.21 | E46: ='4. PEI'!M21 -> 0 | F46: ='5. INN'!M20 -> 0 | G46: ='6. WET'!M20 -> 0 | H46: ='7. CFTN'!M21 -> 0 | J46: ='8. TTACB, WET RP, HP'!L15 -> 0 | L46: ='8. TTACB, WET RP, HP'!L16 -> 0 | N46: =SUM(D46:M46) -> 4061265.21
B47: 13 | C47: MHSA Interest | D47: ='3. CSS'!L24 -> 19648.43 | E47: ='4. PEI'!L21 -> 95318.96 | F47: ='5. INN'!L20 -> 13620.4 | G47: ='6. WET'!L20 -> 6239.56 | H47: ='7. CFTN'!L21 -> -975.19 | I47: ='8. TTACB, WET RP, HP'!K14 -> 0 | J47: ='8. TTACB, WET RP, HP'!K15 -> 0 | K47: ='4. PEI'!L17 -> 0 | L47: ='8. TTACB, WET RP, HP'!K16 -> 0 | N47: =SUM(D47:M47) -> 133852.16
B48: 14 | C48: MHSA Net Expenditure Subtotal for FY 2016-17 | D48: =SUM(D36:D47) -> 4263927.64 | E48: =SUM(E36:E47) -> 1583556.13 | F48: 674744.32 | G48: 117247 | H48: 155074 | I48: 0 | J48: 0 | K48: 0 | L48: 0 | N48: =SUM(D48:M48) -> 6794549.09
B49: 15 | C49: Other Funds
B50: 16 | C50: 1991 Realignment | D50: ='3. CSS'!H24 -> 0 | E50: ='4. PEI'!H21 -> 0 | F50: ='5. INN'!H20 -> 0 | G50: ='6. WET'!H20 -> 0 | H50: ='7. CFTN'!H21 -> 0 | I50: ='8. TTACB, WET RP, HP'!G14 -> 0 | J50: ='8. TTACB, WET RP, HP'!G15 -> 0 | K50: ='4. PEI'!H17 -> 0 | L50: ='8. TTACB, WET RP, HP'!G16 -> 0 | N50: =SUM(D50:M50) -> 0
B51: 17 | C51: Behavioral Health Subaccount | D51: ='3. CSS'!I24 -> 0 | E51: ='4. PEI'!I21 -> 0 | F51: ='5. INN'!I20 -> 0 | G51: ='6. WET'!I20 -> 0 | H51: ='7. CFTN'!I21 -> 0 | I51: ='8. TTACB, WET RP, HP'!H14 -> 0 | J51: ='8. TTACB, WET RP, HP'!H15 -> 0 | K51: ='4. PEI'!I17 -> 0 | L51: ='8. TTACB, WET RP, HP'!H16 -> 0 | N51: =SUM(D51:M51) -> 0
B52: 18 | C52: FFP Revenue | D52: ='3. CSS'!G24 -> 2704068.9 | E52: ='4. PEI'!G21 -> 62665.05 | F52: ='5. INN'!G20 -> 88522.05 | G52: ='6. WET'!G20 -> 0 | H52: ='7. CFTN'!G21 -> 0 | I52: ='8. TTACB, WET RP, HP'!F14 -> 0 | J52: ='8. TTACB, WET RP, HP'!F15 -> 0 | K52: ='4. PEI'!G17 -> 0 | L52: ='8. TTACB, WET RP, HP'!F16 -> 0 | N52: =SUM(D52:M52) -> 2855256
B53: 19 | C53: Other | D53: ='3. CSS'!J24 -> 0 | E53: ='4. PEI'!J21 -> 0 | F53: ='5. INN'!J20 -> 0 | G53: ='6. WET'!J20 -> 0 | H53: ='7. CFTN'!J21 -> 0 | I53: ='8. TTACB, WET RP, HP'!I14 -> 0 | J53: ='8. TTACB, WET RP, HP'!I15 -> 0 | K53: ='4. PEI'!J17 -> 0 | L53: ='8. TTACB, WET RP, HP'!I16 -> 0 | N53: 0
B54: 20 | C54: MHSA Other Funds Expenditure Subtotal for FY 2016-17 | D54: =SUM(D50:D53) -> 2704068.9 | E54: =SUM(E50:E53) -> 62665.05 | F54: 88522.05 | G54: 0 | H54: 0 | I54: 0 | J54: 0 | K54: 0 | L54: 0 | N54: 2855256
B55: 21 | C55: TOTAL MHSA and Other Funding Sources | D55: =D48+D54 -> 6967996.54 | E55: =E48+E54 -> 1646221.18 | F55: 763266.37 | G55: 117247 | H55: 155074 | I55: 0 | J55: 0 | K55: 0 | L55: 0 | N55: 9649805.09
B56: SECTION 4: Transfers to Prudent Reserve, WET or CFTN
B57: 1 | C57: FY 2014-15 | D57: =(G57+H57+M57)*-1 -> 0 | G57: ='3. CSS'!O20 -> 0 | H57: ='3. CSS'!O21 -> 0 | M57: ='3. CSS'!O22 -> 0 | N57: =SUM(D57:M57) -> 0
B58: 2 | C58: FY 2015-16 | D58: =(G58+H58+M58)*-1 -> 0 | G58: ='3. CSS'!N20 -> 0 | H58: ='3. CSS'!N21 -> 0 | M58: ='3. CSS'!N22 -> 0 | N58: =SUM(D58:M58) -> 0
B59: 3 | C59: FY 2016-17 | D59: =(G59+H59+M59)*-1 -> 0 | G59: ='3. CSS'!M20 -> 0 | H59: ='3. CSS'!M21 -> 0 | M59: ='3. CSS'!M22 -> 0 | N59: 0
B60: 4 | C60: TOTAL | D60: =SUM(D57:D59) -> 0 | G60: =SUM(G57:G59) -> 0 | H60: =SUM(H57:H59) -> 0 | M60: =SUM(M57:M59) -> 0 | N60: 0
B61: SECTION 5: Adjustments to MHSA Funds
B62: 1 | C62: Local Prudent Reserve | M62: =SUM('9. Adjustment (MHSA)'!E36:E38) -> 13042.01 | N62: =SUM(D62:M62) -> 13042.01
B63: 2 | C63: FY 2006-07 | D63: =SUMIFS('9. Adjustment (MHSA)'!$F$13:$F$22,'9. Adjustment (MHSA)'!$D$13:$D$22,"CSS",'9. Adjustment (MHSA)'!$E$13:$E$22,"FY 2006-07") -> 0 | G63: =SUMIFS('9. Adjustment (MHSA)'!$F$13:$F$22,'9. Adjustment (MHSA)'!$D$13:$D$22,"WET",'9. Adjustment (MHSA)'!$E$13:$E$22,"FY 2006-07") -> 0 | N63: =SUM(D63:M63) -> 0
B64: 3 | C64: FY 2007-08 | D64: =SUMIFS('9. Adjustment (MHSA)'!$F$13:$F$22,'9. Adjustment (MHSA)'!$D$13:$D$22,"CSS",'9. Adjustment (MHSA)'!$E$13:$E$22,"FY 2007-08") -> 0 | G64: =SUMIFS('9. Adjustment (MHSA)'!$F$13:$F$22,'9. Adjustment (MHSA)'!$D$13:$D$22,"WET",'9. Adjustment (MHSA)'!$E$13:$E$22,"FY 2007-08") -> 0 | H64: =SUMIFS('9. Adjustment (MHSA)'!$F$13:$F$22,'9. Adjustment (MHSA)'!$D$13:$D$22,"CFTN",'9. Adjustment (MHSA)'!$E$13:$E$22,"FY 2007-08") -> 0 | N64: =SUM(D64:M64) -> 0
B65: 4 | C65: FY 2008-09 | D65: =SUMIFS('9. Adjustment (MHSA)'!$F$13:$F$22,'9. Adjustment (MHSA)'!$D$13:$D$22,"CSS",'9. Adjustment (MHSA)'!$E$13:$E$22,"FY 2008-09") -> 0 | E65: =SUMIFS('9. Adjustment (MHSA)'!$F$13:$F$22,'9. Adjustment (MHSA)'!$D$13:$D$22,"PEI",'9. Adjustment (MHSA)'!$E$13:$E$22,"FY 2008-09") -> 0 | F65: =SUMIFS('9. Adjustment (MHSA)'!$F$13:$F$22,'9. Adjustment (MHSA)'!$D$13:$D$22,"INN",'9. Adjustment (MHSA)'!$E$13:$E$22,"FY 2008-09") -> 0 | G65: =SUMIFS('9. Adjustment (MHSA)'!$F$13:$F$22,'9. Adjustment (MHSA)'!$D$13:$D$22,"WET",'9. Adjustment (MHSA)'!$E$13:$E$22,"FY 2008-09") -> 0 | H65: =SUMIFS('9. Adjustment (MHSA)'!$F$13:$F$22,'9. Adjustment (MHSA)'!$D$13:$D$22,"CFTN",'9. Adjustment (MHSA)'!$E$13:$E$22,"FY 2008-09") -> 0 | I65: =SUMIFS('9. Adjustment (MHSA)'!$F$13:$F$22,'9. Adjustment (MHSA)'!$D$13:$D$22,"TTACB",'9. Adjustment (MHSA)'!$E$13:$E$22,"FY 2008-09") -> 0 | J65: =SUMIFS('9. Adjustment (MHSA)'!$F$13:$F$22,'9. Adjustment (MHSA)'!$D$13:$D$22,"WET RP",'9. Adjustment (MHSA)'!$E$13:$E$22,"FY 2008-09") -> 0 | K65: =SUMIFS('9. Adjustment (MHSA)'!$F$13:$F$22,'9. Adjustment (MHSA)'!$D$13:$D$22,"PEI SW",'9. Adjustment (MHSA)'!$E$13:$E$22,"FY 2008-09") -> 0 | N65: 0
B66: 5 | C66: FY 2009-10 | D66: =SUMIFS('9. Adjustment (MHSA)'!$F$13:$F$22,'9. Adjustment (MHSA)'!$D$13:$D$22,"CSS",'9. Adjustment (MHSA)'!$E$13:$E$22,"FY 2009-10") -> 0 | E66: =SUMIFS('9. Adjustment (MHSA)'!$F$13:$F$22,'9. Adjustment (MHSA)'!$D$13:$D$22,"PEI",'9. Adjustment (MHSA)'!$E$13:$E$22,"FY 2009-10") -> 0 | F66: =SUMIFS('9. Adjustment (MHSA)'!$F$13:$F$22,'9. Adjustment (MHSA)'!$D$13:$D$22,"INN",'9. Adjustment (MHSA)'!$E$13:$E$22,"FY 2009-10") -> 0 | G66: =SUMIFS('9. Adjustment (MHSA)'!$F$13:$F$22,'9. Adjustment (MHSA)'!$D$13:$D$22,"WET",'9. Adjustment (MHSA)'!$E$13:$E$22,"FY 2009-10") -> 0 | H66: =SUMIFS('9. Adjustment (MHSA)'!$F$13:$F$22,'9. Adjustment (MHSA)'!$D$13:$D$22,"CFTN",'9. Adjustment (MHSA)'!$E$13:$E$22,"FY 2009-10") -> 0 | I66: =SUMIFS('9. Adjustment (MHSA)'!$F$13:$F$22,'9. Adjustment (MHSA)'!$D$13:$D$22,"TTACB",'9. Adjustment (MHSA)'!$E$13:$E$22,"FY 2009-10") -> 0 | J66: =SUMIFS('9. Adjustment (MHSA)'!$F$13:$F$22,'9. Adjustment (MHSA)'!$D$13:$D$22,"WET RP",'9. Adjustment (MHSA)'!$E$13:$E$22,"FY 2009-10") -> 0 | K66: =SUMIFS('9. Adjustment (MHSA)'!$F$13:$F$22,'9. Adjustment (MHSA)'!$D$13:$D$22,"PEI SW",'9. Adjustment (MHSA)'!$E$13:$E$22,"FY 2009-10") -> 0 | N66: 0
B67: 6 | C67: FY 2010-11 | D67: =SUMIFS('9. Adjustment (MHSA)'!$F$13:$F$22,'9. Adjustment (MHSA)'!$D$13:$D$22,"CSS",'9. Adjustment (MHSA)'!$E$13:$E$22,"FY 2010-11") -> 0 | E67: =SUMIFS('9. Adjustment (MHSA)'!$F$13:$F$22,'9. Adjustment (MHSA)'!$D$13:$D$22,"PEI",'9. Adjustment (MHSA)'!$E$13:$E$22,"FY 2010-11") -> 0 | F67: =SUMIFS('9. Adjustment (MHSA)'!$F$13:$F$22,'9. Adjustment (MHSA)'!$D$13:$D$22,"INN",'9. Adjustment (MHSA)'!$E$13:$E$22,"FY 2010-11") -> 0 | G67: =SUMIFS('9. Adjustment (MHSA)'!$F$13:$F$22,'9. Adjustment (MHSA)'!$D$13:$D$22,"WET",'9. Adjustment (MHSA)'!$E$13:$E$22,"FY 2010-11") -> 0 | H67: =SUMIFS('9. Adjustment (MHSA)'!$F$13:$F$22,'9. Adjustment (MHSA)'!$D$13:$D$22,"CFTN",'9. Adjustment (MHSA)'!$E$13:$E$22,"FY 2010-11") -> 0 | I67: =SUMIFS('9. Adjustment (MHSA)'!$F$13:$F$22,'9. Adjustment (MHSA)'!$D$13:$D$22,"TTACB",'9. Adjustment (MHSA)'!$E$13:$E$22,"FY 2010-11") -> 0 | J67: =SUMIFS('9. Adjustment (MHSA)'!$F$13:$F$22,'9. Adjustment (MHSA)'!$D$13:$D$22,"WET RP",'9. Adjustment (MHSA)'!$E$13:$E$22,"FY 2010-11") -> 0 | K67: =SUMIFS('9. Adjustment (MHSA)'!$F$13:$F$22,'9. Adjustment (MHSA)'!$D$13:$D$22,"PEI SW",'9. Adjustment (MHSA)'!$E$13:$E$22,"FY 2010-11") -> 0 | N67: 0
B68: 7 | C68: FY 2011-12 | D68: =SUMIFS('9. Adjustment (MHSA)'!$F$13:$F$22,'9. Adjustment (MHSA)'!$D$13:$D$22,"CSS",'9. Adjustment (MHSA)'!$E$13:$E$22,"FY 2011-12") -> 0 | E68: =SUMIFS('9. Adjustment (MHSA)'!$F$13:$F$22,'9. Adjustment (MHSA)'!$D$13:$D$22,"PEI",'9. Adjustment (MHSA)'!$E$13:$E$22,"FY 2011-12") -> 0 | F68: =SUMIFS('9. Adjustment (MHSA)'!$F$13:$F$22,'9. Adjustment (MHSA)'!$D$13:$D$22,"INN",'9. Adjustment (MHSA)'!$E$13:$E$22,"FY 2011-12") -> 0 | G68: =SUMIFS('9. Adjustment (MHSA)'!$F$13:$F$22,'9. Adjustment (MHSA)'!$D$13:$D$22,"WET",'9. Adjustment (MHSA)'!$E$13:$E$22,"FY 2011-12") -> 0 | H68: =SUMIFS('9. Adjustment (MHSA)'!$F$13:$F$22,'9. Adjustment (MHSA)'!$D$13:$D$22,"CFTN",'9. Adjustment (MHSA)'!$E$13:$E$22,"FY 2011-12") -> 0 | I68: =SUMIFS('9. Adjustment (MHSA)'!$F$13:$F$22,'9. Adjustment (MHSA)'!$D$13:$D$22,"TTACB",'9. Adjustment (MHSA)'!$E$13:$E$22,"FY 2011-12") -> 0 | J68: =SUMIFS('9. Adjustment (MHSA)'!$F$13:$F$22,'9. Adjustment (MHSA)'!$D$13:$D$22,"WET RP",'9. Adjustment (MHSA)'!$E$13:$E$22,"FY 2011-12") -> 0 | K68: =SUMIFS('9. Adjustment (MHSA)'!$F$13:$F$22,'9. Adjustment (MHSA)'!$D$13:$D$22,"PEI SW",'9. Adjustment (MHSA)'!$E$13:$E$22,"FY 2011-12") -> 0 | N68: 0
B69: 8 | C69: FY 2012-13 | D69: =SUMIFS('9. Adjustment (MHSA)'!$F$13:$F$22,'9. Adjustment (MHSA)'!$D$13:$D$22,"CSS",'9. Adjustment (MHSA)'!$E$13:$E$22,"FY 2012-13") -> 57373 | E69: =SUMIFS('9. Adjustment (MHSA)'!$F$13:$F$22,'9. Adjustment (MHSA)'!$D$13:$D$22,"PEI",'9. Adjustment (MHSA)'!$E$13:$E$22,"FY 2012-13") -> -57373 | F69: =SUMIFS('9. Adjustment (MHSA)'!$F$13:$F$22,'9. Adjustment (MHSA)'!$D$13:$D$22,"INN",'9. Adjustment (MHSA)'!$E$13:$E$22,"FY 2012-13") -> 0 | G69: =SUMIFS('9. Adjustment (MHSA)'!$F$13:$F$22,'9. Adjustment (MHSA)'!$D$13:$D$22,"WET",'9. Adjustment (MHSA)'!$E$13:$E$22,"FY 2012-13") -> 0 | H69: =SUMIFS('9. Adjustment (MHSA)'!$F$13:$F$22,'9. Adjustment (MHSA)'!$D$13:$D$22,"CFTN",'9. Adjustment (MHSA)'!$E$13:$E$22,"FY 2012-13") -> 0 | I69: =SUMIFS('9. Adjustment (MHSA)'!$F$13:$F$22,'9. Adjustment (MHSA)'!$D$13:$D$22,"TTACB",'9. Adjustment (MHSA)'!$E$13:$E$22,"FY 2012-13") -> 0 | J69: =SUMIFS('9. Adjustment (MHSA)'!$F$13:$F$22,'9. Adjustment (MHSA)'!$D$13:$D$22,"WET RP",'9. Adjustment (MHSA)'!$E$13:$E$22,"FY 2012-13") -> 0 | N69: 0
B70: 9 | C70: FY 2013-14 | D70: =SUMIFS('9. Adjustment (MHSA)'!$F$13:$F$22,'9. Adjustment (MHSA)'!$D$13:$D$22,"CSS",'9. Adjustment (MHSA)'!$E$13:$E$22,"FY 2013-14") -> 44600.14 | E70: =SUMIFS('9. Adjustment (MHSA)'!$F$13:$F$22,'9. Adjustment (MHSA)'!$D$13:$D$22,"PEI",'9. Adjustment (MHSA)'!$E$13:$E$22,"FY 2013-14") -> -44600.14 | F70: =SUMIFS('9. Adjustment (MHSA)'!$F$13:$F$22,'9. Adjustment (MHSA)'!$D$13:$D$22,"INN",'9. Adjustment (MHSA)'!$E$13:$E$22,"FY 2013-14") -> 0 | G70: =SUMIFS('9. Adjustment (MHSA)'!$F$13:$F$22,'9. Adjustment (MHSA)'!$D$13:$D$22,"WET",'9. Adjustment (MHSA)'!$E$13:$E$22,"FY 2013-14") -> 0 | H70: =SUMIFS('9. Adjustment (MHSA)'!$F$13:$F$22,'9. Adjustment (MHSA)'!$D$13:$D$22,"CFTN",'9. Adjustment (MHSA)'!$E$13:$E$22,"FY 2013-14") -> 0 | I70: =SUMIFS('9. Adjustment (MHSA)'!$F$13:$F$22,'9. Adjustment (MHSA)'!$D$13:$D$22,"TTACB",'9. Adjustment (MHSA)'!$E$13:$E$22,"FY 2013-14") -> 0 | J70: =SUMIFS('9. Adjustment (MHSA)'!$F$13:$F$22,'9. Adjustment (MHSA)'!$D$13:$D$22,"WET RP",'9. Adjustment (MHSA)'!$E$13:$E$22,"FY 2013-14") -> 0 | N70: 0
B71: 10 | C71: FY 2014-15 | D71: =SUMIFS('9. Adjustment (MHSA)'!$F$13:$F$22,'9. Adjustment (MHSA)'!$D$13:$D$22,"CSS",'9. Adjustment (MHSA)'!$E$13:$E$22,"FY 2014-15") -> 62429.95 | E71: =SUMIFS('9. Adjustment (MHSA)'!$F$13:$F$22,'9. Adjustment (MHSA)'!$D$13:$D$22,"PEI",'9. Adjustment (MHSA)'!$E$13:$E$22,"FY 2014-15") -> -62429.95 | F71: =SUMIFS('9. Adjustment (MHSA)'!$F$13:$F$22,'9. Adjustment (MHSA)'!$D$13:$D$22,"INN",'9. Adjustment (MHSA)'!$E$13:$E$22,"FY 2014-15") -> 0 | G71: =SUMIFS('9. Adjustment (MHSA)'!$F$13:$F$22,'9. Adjustment (MHSA)'!$D$13:$D$22,"WET",'9. Adjustment (MHSA)'!$E$13:$E$22,"FY 2014-15") -> 0 | H71: =SUMIFS('9. Adjustment (MHSA)'!$F$13:$F$22,'9. Adjustment (MHSA)'!$D$13:$D$22,"CFTN",'9. Adjustment (MHSA)'!$E$13:$E$22,"FY 2014-15") -> 0 | I71: =SUMIFS('9. Adjustment (MHSA)'!$F$13:$F$22,'9. Adjustment (MHSA)'!$D$13:$D$22,"TTACB",'9. Adjustment (MHSA)'!$E$13:$E$22,"FY 2014-15") -> 0 | J71: =SUMIFS('9. Adjustment (MHSA)'!$F$13:$F$22,'9. Adjustment (MHSA)'!$D$13:$D$22,"WET RP",'9. Adjustment (MHSA)'!$E$13:$E$22,"FY 2014-15") -> 0 | L71: =SUMIFS('9. Adjustment (MHSA)'!$F$13:$F$22,'9. Adjustment (MHSA)'!$D$13:$D$22,"MHSA HP",'9. Adjustment (MHSA)'!$E$13:$E$22,"FY 2014-15") -> 0 | N71: 0
B72: 11 | C72: FY 2015-16 | D72: =SUMIFS('9. Adjustment (MHSA)'!$F$13:$F$22,'9. Adjustment (MHSA)'!$D$13:$D$22,"CSS",'9. Adjustment (MHSA)'!$E$13:$E$22,"FY 2015-16") -> 51368.39 | E72: =SUMIFS('9. Adjustment (MHSA)'!$F$13:$F$22,'9. Adjustment (MHSA)'!$D$13:$D$22,"PEI",'9. Adjustment (MHSA)'!$E$13:$E$22,"FY 2015-16") -> -59566.7 | F72: =SUMIFS('9. Adjustment (MHSA)'!$F$13:$F$22,'9. Adjustment (MHSA)'!$D$13:$D$22,"INN",'9. Adjustment (MHSA)'!$E$13:$E$22,"FY 2015-16") -> 0 | G72: =SUMIFS('9. Adjustment (MHSA)'!$F$13:$F$22,'9. Adjustment (MHSA)'!$D$13:$D$22,"WET",'9. Adjustment (MHSA)'!$E$13:$E$22,"FY 2015-16") -> 0 | H72: =SUMIFS('9. Adjustment (MHSA)'!$F$13:$F$22,'9. Adjustment (MHSA)'!$D$13:$D$22,"CFTN",'9. Adjustment (MHSA)'!$E$13:$E$22,"FY 2015-16") -> 0 | I72: =SUMIFS('9. Adjustment (MHSA)'!$F$13:$F$22,'9. Adjustment (MHSA)'!$D$13:$D$22,"TTACB",'9. Adjustment (MHSA)'!$E$13:$E$22,"FY 2015-16") -> 0 | J72: =SUMIFS('9. Adjustment (MHSA)'!$F$13:$F$22,'9. Adjustment (MHSA)'!$D$13:$D$22,"WET RP",'9. Adjustment (MHSA)'!$E$13:$E$22,"FY 2015-16") -> 0 | L72: =SUMIFS('9. Adjustment (MHSA)'!$F$13:$F$22,'9. Adjustment (MHSA)'!$D$13:$D$22,"MHSA HP",'9. Adjustment (MHSA)'!$E$13:$E$22,"FY 2015-16") -> 0 | N72: -8198.31
B73: 12 | C73: FY 2016-17 | D73: =SUMIFS('9. Adjustment (MHSA)'!$F$13:$F$22,'9. Adjustment (MHSA)'!$D$13:$D$22,"CSS",'9. Adjustment (MHSA)'!$E$13:$E$22,"FY 2016-17") -> -13042.01 | E73: =SUMIFS('9. Adjustment (MHSA)'!$F$13:$F$22,'9. Adjustment (MHSA)'!$D$13:$D$22,"PEI",'9. Adjustment (MHSA)'!$E$13:$E$22,"FY 2016-17") -> 0 | F73: =SUMIFS('9. Adjustment (MHSA)'!$F$13:$F$22,'9. Adjustment (MHSA)'!$D$13:$D$22,"INN",'9. Adjustment (MHSA)'!$E$13:$E$22,"FY 2016-17") -> 0 | G73: =SUMIFS('9. Adjustment (MHSA)'!$F$13:$F$22,'9. Adjustment (MHSA)'!$D$13:$D$22,"WET",'9. Adjustment (MHSA)'!$E$13:$E$22,"FY 2016-17") -> 0 | H73: =SUMIFS('9. Adjustment (MHSA)'!$F$13:$F$22,'9. Adjustment (MHSA)'!$D$13:$D$22,"CFTN",'9. Adjustment (MHSA)'!$E$13:$E$22,"FY 2016-17") -> 0 | I73: =SUMIFS('9. Adjustment (MHSA)'!$F$13:$F$22,'9. Adjustment (MHSA)'!$D$13:$D$22,"TTACB",'9. Adjustment (MHSA)'!$E$13:$E$22,"FY 2016-17") -> 0 | J73: =SUMIFS('9. Adjustment (MHSA)'!$F$13:$F$22,'9. Adjustment (MHSA)'!$D$13:$D$22,"WET RP",'9. Adjustment (MHSA)'!$E$13:$E$22,"FY 2016-17") -> 0 | L73: =SUMIFS('9. Adjustment (MHSA)'!$F$13:$F$22,'9. Adjustment (MHSA)'!$D$13:$D$22,"MHSA HP",'9. Adjustment (MHSA)'!$E$13:$E$22,"FY 2016-17") -> 0 | N73: -13042.01
B74: 13 | C74: Interest | D74: =SUMIFS('9. Adjustment (MHSA)'!$F$28:$F$30,'9. Adjustment (MHSA)'!$E$28:$E$30,"CSS") -> 0 | E74: =SUMIFS('9. Adjustment (MHSA)'!$F$28:$F$30,'9. Adjustment (MHSA)'!$E$28:$E$30,"PEI") -> 0 | F74: =SUMIFS('9. Adjustment (MHSA)'!$F$28:$F$30,'9. Adjustment (MHSA)'!$E$28:$E$30,"INN") -> 0 | G74: =SUMIFS('9. Adjustment (MHSA)'!$F$28:$F$30,'9. Adjustment (MHSA)'!$E$28:$E$30,"WET") -> 0 | H74: =SUMIFS('9. Adjustment (MHSA)'!$F$28:$F$30,'9. Adjustment (MHSA)'!$E$28:$E$30,"CFTN") -> 0 | I74: =SUMIFS('9. Adjustment (MHSA)'!$F$28:$F$30,'9. Adjustment (MHSA)'!$E$28:$E$30,"TTACB") -> 0 | J74: =SUMIFS('9. Adjustment (MHSA)'!$F$28:$F$30,'9. Adjustment (MHSA)'!$E$28:$E$30,"WET RP") -> 0 | K74: =SUMIFS('9. Adjustment (MHSA)'!$F$28:$F$30,'9. Adjustment (MHSA)'!$E$28:$E$30,"PEI SW") -> 0 | L74: =SUMIFS('9. Adjustment (MHSA)'!$F$28:$F$30,'9. Adjustment (MHSA)'!$E$28:$E$30,"MHSA HP") -> 0 | N74: 0
B75: 14 | C75: TOTAL | D75: =SUM(D62:D74) -> 202729.47 | E75: =SUM(E62:E74) -> -223969.79 | F75: 0 | G75: 0 | H75: 0 | I75: 0 | J75: 0 | K75: 0 | L75: 0 | M75: 13042.01 | N75: -8198.31
B76: SECTION 6: Adjustments to FFP Revenue
B77: 1 | C77: FY 2006-07 | D77: ='10. Adjustment (FFP)'!H13 -> 0 | E77: ='10. Adjustment (FFP)'!H23 -> 0 | F77: ='10. Adjustment (FFP)'!H33 -> 0 | G77: ='10. Adjustment (FFP)'!H43 -> 0 | N77: =SUM(D77:M77) -> 0
B78: 2 | C78: FY 2007-08 | D78: ='10. Adjustment (FFP)'!H14 -> 0 | E78: ='10. Adjustment (FFP)'!H24 -> 0 | F78: ='10. Adjustment (FFP)'!H34 -> 0 | G78: ='10. Adjustment (FFP)'!H44 -> 0 | N78: =SUM(D78:M78) -> 0
B79: 3 | C79: FY 2008-09 | D79: ='10. Adjustment (FFP)'!H15 -> 0 | E79: ='10. Adjustment (FFP)'!H25 -> 0 | F79: ='10. Adjustment (FFP)'!H35 -> 0 | G79: ='10. Adjustment (FFP)'!H45 -> 0 | N79: 0
B80: 4 | C80: FY 2009-10 | D80: ='10. Adjustment (FFP)'!H16 -> 0 | E80: ='10. Adjustment (FFP)'!H26 -> 0 | F80: ='10. Adjustment (FFP)'!H36 -> 0 | G80: ='10. Adjustment (FFP)'!H46 -> 0 | N80: 0
B81: 5 | C81: FY 2010-11 | D81: ='10. Adjustment (FFP)'!H17 -> 0 | E81: ='10. Adjustment (FFP)'!H27 -> 0 | F81: ='10. Adjustment (FFP)'!H37 -> 0 | G81: ='10. Adjustment (FFP)'!H47 -> 0 | N81: 0
B82: 6 | C82: FY 2011-12 | D82: ='10. Adjustment (FFP)'!H18 -> 0 | E82: ='10. Adjustment (FFP)'!H28 -> 0 | F82: ='10. Adjustment (FFP)'!H38 -> 0 | G82: ='10. Adjustment (FFP)'!H48 -> 0 | N82: 0
B83: 7 | C83: FY 2012-13 | D83: ='10. Adjustment (FFP)'!H19 -> 0 | E83: ='10. Adjustment (FFP)'!H29 -> 0 | F83: ='10. Adjustment (FFP)'!H39 -> 0 | G83: ='10. Adjustment (FFP)'!H49 -> 0 | N83: 0
B84: 8 | C84: FY 2013-14 | D84: ='10. Adjustment (FFP)'!H20 -> 0 | E84: ='10. Adjustment (FFP)'!H30 -> 0 | F84: ='10. Adjustment (FFP)'!H40 -> 0 | G84: ='10. Adjustment (FFP)'!H50 -> 0 | N84: 0
B85: 9 | C85: FY 2014-15 | D85: ='10. Adjustment (FFP)'!H21 -> 0 | E85: ='10. Adjustment (FFP)'!H31 -> 0 | F85: ='10. Adjustment (FFP)'!H41 -> 0 | G85: ='10. Adjustment (FFP)'!H51 -> 0 | N85: 0
B86: 10 | C86: FY 2015-16 | D86: ='10. Adjustment (FFP)'!H22 -> 0 | E86: ='10. Adjustment (FFP)'!H32 -> 0 | F86: ='10. Adjustment (FFP)'!H42 -> 0 | G86: ='10. Adjustment (FFP)'!H52 -> 0 | N86: 0
B87: 11 | C87: TOTAL | D87: =SUM(D77:D86) -> 0 | E87: 0 | F87: 0 | G87: =SUM(G77:G86) -> 0 | N87: 0
B88: SECTION 7: Unspent MHSA Fund in the Local MHS Fund Balance (MHSA + FFP)
B89: 1 | C89: Local Prudent Reserve | M89: =M16+M30+M60+M62 -> 1181858.01 | N89: =M89 -> 1181858.01
B90: 2 | C90: FY 2006-07 | G90: =G17-G36+G63+G77 -> 0 | N90: =SUM(D90:M90) -> 0
B91: 3 | C91: FY 2007-08 | G91: 200623.56 | H91: =H18-H37+H64+H78 -> 0 | N91: =SUM(D91:M91) -> 200623.56
B92: 4 | C92: FY 2008-09 | D92: =D19-D38+D65+D79 -> 0 | E92: 0 | F92: 0 | G92: 0 | H92: 0 | I92: =I19-I38+I65+I79 -> 0 | J92: 0 | K92: 0 | N92: 0
B93: 5 | C93: FY 2009-10 | D93: 0 | E93: 0 | F93: 0 | G93: 0 | H93: 0 | I93: 0 | J93: 0 | K93: 0 | N93: 0
B94: 6 | C94: FY 2010-11 | D94: 0 | E94: 0 | F94: 0 | G94: 0 | H94: 0 | I94: 0 | J94: 0 | K94: 0 | N94: 0
B95: 7 | C95: FY 2011-12 | D95: 0 | E95: 0 | F95: 0 | G95: 5712 | H95: 0 | I95: 0 | J95: 0 | K95: 0 | N95: 5712
B96: 8 | C96: FY 2012-13 | D96: 57373 | E96: -57373 | F96: 0 | G96: 0 | H96: 0 | J96: =J23-J42+J69+J83 -> 0 | N96: 0
B97: 9 | C97: FY 2013-14 | D97: 44600.14 | E97: -44600.14 | F97: 0 | G97: 0 | H97: 0 | J97: =J24-J43+J70+J84 -> 0 | N97: 0
B98: 10 | C98: FY 2014-15 | D98: =D25-D44+D57+D71+D85 -> 62429.95 | E98: =E25-E44+E57+E71+E85 -> -62429.95 | F98: =F25-F44+F57+F71+F85 -> 51119.08 | G98: =G25-G44+G57+G71+G85 -> 0 | H98: =H25-H44+H57+H71+H85 -> 0 | J98: =J25-J44+J71+J85 -> 0 | N98: 51119.08
B99: 11 | C99: FY 2015-16 | D99: =D26-D45+D58+D72+D86 -> 51368.39 | E99: =E26-E45+E58+E72+E86 -> 560503.13 | F99: =F26-F45+F58+F72+F86 -> 256842 | G99: =G26-G45+G58+G72+G86 -> 0 | H99: =H26-H45++H58+H72+H86 -> 56330.81 | J99: =J26-J45+J72+J86 -> 0 | L99: =L26-L45+L72+L86 -> 0 | N99: 925044.33
B100: 12 | C100: FY 2016-17 | D100: =D31-D46+D59+D73 -> 887506.908 | E100: =E31-E46+E59+E73 -> 1240453.532 | F100: =F31-F46+F59+F73 -> 326435.14 | G100: =G31-G46+G59+G73 -> 0 | H100: =H31-H46+H59+H73 -> 0 | J100: =J31-J46+J73 -> 0 | L100: =L31-L46+L59+L73 -> 0 | N100: 2454395.58
B101: 13 | C101: Interest | D101: =(D27+D32)-(D47+D74) -> 1249.81 | E101: 162.98 | F101: 29419.85 | G101: 1245.86 | H101: 0 | I101: 0 | J101: 0 | K101: 0 | L101: 0 | M101: =M27+M32+M74 -> 32041.69 | N101: 64120.19
B102: 14 | C102: TOTAL | D102: =SUM(D89:D101) -> 1104528.198 | E102: =SUM(E89:E101) -> 1636716.552 | F102: 663816.07 | G102: =SUM(G89:G101) -> 207581.42 | H102: 56330.81 | I102: 0 | J102: 0 | K102: 0 | L102: 0 | M102: =SUM(M89:M101) -> 1213899.7 | N102: 4882872.75

Sheet 3. CSS
B1: Back to Summary
B3: Annual Mental Health Services Act Revenue and Expenditure Report
B4: Fiscal Year 2016-17
B5: Community Services and Supports (CSS) Summary
B7: County: | D7: =IF(ISBLANK('1. Information'!D6),"",'1. Information'!D6) ->  | F7: Date: | G7: =IF(ISBLANK('1. Information'!D5),"",'1. Information'!D5) -> 2018-04-02
B9: SECTION ONE
F11: A | G11: B | H11: C | I11: D | J11: E | K11: F | L11: G | M11: H | N11: I | O11: J | P11: K | Q11: L | R11: M | S11: N | T11: O | U11: P
G12: Other Funds | K12: MHSA Funds
F13: Total | G13: Medi-Cal FFP | H13: 1991 Realignment | I13: Behavioral Health Subaccount | J13: Other Funding | K13: Total MHSA CSS (Including MHSA Interest) | L13: MHSA Interest | M13: MHSA CSS 2016-17 | N13: MHSA CSS 2015-16 | O13: MHSA CSS 2014-15 | P13: MHSA CSS 2013-14 | Q13: MHSA CSS 2012-13 | R13: MHSA CSS 2011-12 | S13: MHSA CSS 2010-11 | T13: MHSA CSS 2009-10 | U13: MHSA CSS 2008-09
B14: 1 | C14: CSS Annual Planning Costs | F14: =SUM($G14:$J14,$K14) -> 32911.42 | G14: =SUM(169365*0.46)*0.25 -> 19476.975 | K14: =SUM($M14:$U14, $L14) -> 13434.445 | M14: =32911.42-G14 -> 13434.445
B15: 2 | C15: CSS Evaluation Costs | F15: =SUM($G15:$J15,$K15) -> 22522.49 | G15: =SUM(169365*0.46)*0.17 -> 13244.343 | K15: =SUM($M15:$U15, $L15) -> 9278.147 | M15: =22522.49-G15 -> 9278.147
B16: 3 | C16: CSS Administration Costs | F16: 77570.63 | G16: =SUM(169365*0.46)*0.58 -> 45186.582 | K16: 32384.048 | M16: =77570.63-G16 -> 32384.048
B17: 4 | C17: CSS Funds Transferred to JPA | F17: =SUM($G17:$J17,$K17) -> 0 | K17: 0
B18: 5 | C18: CSS Expenditure Incurred by JPA | F18: =SUM($G18:$J18,$K18) -> 0 | K18: =SUM($M18:$U18, $L18) -> 0
B19: 6 | C19: CSS Funds Transferred to CalHFA | F19: =SUM($G19:$J19,$K19) -> 0 | K19: =SUM($M19:$U19, $L19) -> 0
B20: 7 | C20: CSS Funds Transferred to WET | F20: =SUM($G20:$J20,$K20) -> 0 | K20: =SUM($M20:$U20, $L20) -> 0
B21: 8 | C21: CSS Funds Transferred to CFTN | F21: =SUM($G21:$J21,$K21) -> 0 | K21: =SUM($M21:$U21, $L21) -> 0
B22: 9 | C22: CSS Funds Transferred to PR | F22: 0 | K22: =SUM($M22:$U22, $L22) -> 0
B23: 10 | C23: CSS Program Expenditures | F23: =SUM($G23:$J23,$K23) -> 6834992 | G23: =SUM($H39:$H83) -> 2626161 | H23: =SUM($I39:$I83) -> 0 | I23: =SUM($J39:$J83) -> 0 | J23: =SUM(K39:K83) -> 0 | K23: 4208831 | L23: =SUM($M39:$M83) -> 19648.43 | M23: =SUM(N39:N83) -> 4006168.57 | N23: =SUM(O39:O83) -> 183014 | O23: =SUM(P39:P83) -> 0 | P23: =SUM(Q39:Q83) -> 0 | Q23: 0 | R23: 0 | S23: 0 | T23: 0 | U23: 0
B24: 11 | C24: Total CSS Expenditures (Excluding Funds Transferred to JPA) | F24: =SUM(F14:F16,F18:F23) -> 6967996.54 | G24: =SUM(G14:G16,G18:G23) -> 2704068.9 | H24: 0 | I24: 0 | J24: 0 | K24: 4263927.64 | L24: 19648.43 | M24: 4061265.21 | N24: 183014 | O24: 0 | P24: 0 | Q24: 0 | R24: 0 | S24: 0 | T24: 0 | U24: 0
B25: 12 | C25: Total MHSA CSS Available for Expenditures | K25: =SUM(L25,M25:U25) -> 5165726.368 | L25: ='2. Component Summary'!D27+'2. Component Summary'!D32 -> 20898.24 | M25: ='2. Component Summary'!D30+'2. Component Summary'!D31 -> 4961814.128 | N25: ='2. Component Summary'!D26 -> 183014 | O25: ='2. Component Summary'!D25 -> 0 | P25: ='2. Component Summary'!D24 -> 0 | Q25: ='2. Component Summary'!D23 -> 0 | R25: ='2. Component Summary'!D22 -> 0 | S25: ='2. Component Summary'!D21 -> 0 | T25: ='2. Component Summary'!D20 -> 0 | U25: ='2. Component Summary'!D19 -> 0
B27: SECTION TWO
F29: A | G29: B
B30: 1 | C30: Total MHSA FSP Program Expenditure | F30: =SUMIF($F$39:$F$83,"FSP",$L$39:$L$83) -> 3782132 | G30: (A)
B31: 2 | C31: Total MHSA CSS Expenditures (Excluding Funds Transferred to JPA) | F31: =SUM(K14:K16,K18,K23) -> 4263927.64 | G31: (B)
B32: 3 | C32: FSP Percentage of Total CSS Expenditure | F32: =IF($K$24=0,"-",(F30)/(F31)) -> 0.8870066097 | G32: (A) ÷ (B)
B34: SECTION THREE
C36: A | D36: B | E36: C | F36: D | G36: E | H36: F | I36: G | J36: H | K36: I | L36: J | M36: K | N36: L | O36: M | P36: N | Q36: O | R36: P | S36: Q | T36: R | U36: S | V36: T
C37: CSS Component | H37: Other Funds | L37: MHSA Funds
B38: # | C38: County Code | D38: Program Name | E38: Prior Program Name | F38: Service Category | G38: Total CSS Program Expenditures | H38: Medi-Cal FFP | I38: 1991 Realignment | J38: Behavorial Health Subaccount | K38: Other Funding | L38: Total MHSA CSS (Including MHSA Interest) | M38: MHSA Interest | N38: MHSA CSS 2016-17 | O38: MHSA CSS 2015-16 | P38: MHSA CSS 2014-15 | Q38: MHSA CSS 2013-14 | R38: MHSA CSS 2012-13 | S38: MHSA CSS 2011-12 | T38: MHSA CSS 2010-11 | U38: MHSA CSS 2009-10 | V38: MHSA CSS 2008-09
B39: 1 | C39: =IF(AND(NOT(COUNTA(D39:F39)),(NOT(COUNTA(H39:K39))),(NOT(COUNTA(N39:V39)))),"",VLOOKUP($D$7,Info_County_Code,2,FALSE)) ->  | F39: Non-FSP | G39: =SUM(H39:K39,L39) -> 820739 | H39: 294803 | L39: =SUM($N39:$V39)+$M39 -> 525936 | N39: 525936
B40: 2 | D40: CCT | F40: FSP | G40: =SUM(H40:K40,L40) -> 5979054 | H40: 2196922 | L40: 3782132 | M40: 19648.43 | N40: =3782132-M40-O40 -> 3579469.57 | O40: 183014
B41: 3 | D41: OMS | F41: Non-FSP | G41: 27505 | H41: 90286 | L41: -62781 | N41: -62781
B42: 4 | D42: Older & Dependant Adults | F42: Non-FSP | G42: 7694 | H42: 44150 | L42: -36456 | N42: -36456
B43: 5 | G43: 0 | L43: 0
B44: 6 | G44: 0 | L44: 0
B45: 7 | G45: 0 | L45: 0
B46: 8 | G46: 0 | L46: 0
B47: 9 | G47: 0 | L47: 0
B48: 10 | G48: 0 | L48: 0
B49: 11 | G49: 0 | L49: 0
B50: 12 | G50: 0 | L50: 0
B51: 13 | G51: 0 | L51: 0
B52: 14 | G52: 0 | L52: 0
B53: 15 | G53: 0 | L53: 0
B54: 16 | G54: 0 | L54: 0
B55: 17 | G55: 0 | L55: 0
B56: 18 | G56: 0 | L56: 0
B57: 19 | G57: 0 | L57: 0
B58: 20 | G58: 0 | L58: 0
B59: 21 | G59: 0 | L59: 0
B60: 22 | G60: 0 | L60: 0
B61: 23 | G61: 0 | L61: 0
B62: 24 | G62: 0 | L62: 0
B63: 25 | G63: 0 | L63: 0
B64: 26 | G64: 0 | L64: 0
B65: 27 | G65: 0 | L65: 0
B66: 28 | G66: 0 | L66: 0
B67: 29 | G67: 0 | L67: 0
B68: 30 | G68: 0 | L68: 0
B69: 31 | G69: 0 | L69: 0
B70: 32 | G70: 0 | L70: 0
B71: 33 | G71: 0 | L71: 0
B72: 34 | G72: 0 | L72: 0
B73: 35 | G73: 0 | L73: 0
B74: 36 | G74: 0 | L74: 0
B75: 37 | G75: 0 | L75: 0
B76: 38 | G76: 0 | L76: 0
B77: 39 | G77: 0 | L77: 0
B78: 40 | G78: 0 | L78: 0
B79: 41 | G79: 0 | L79: 0
B80: 42 | G80: 0 | L80: 0
B81: 43 | G81: 0 | L81: 0
B82: 44 | G82: 0 | L82: 0
B83: 45 | G83: 0 | L83: 0

Sheet 4. PEI
B1: Back to Summary
B3: Annual Mental Health Services Act Revenue and Expenditure Report
B4: Fiscal Year 2016-17
B5: Prevention and Early Intervention (PEI) Summary
B7: County: | D7: =IF(ISBLANK('1. Information'!D6),"",'1. Information'!D6) ->  | F7: Date: | G7: =IF(ISBLANK('1. Information'!D5),"",'1. Information'!D5) -> 2018-04-02
B9: SECTION ONE
F11: A | G11: B | H11: C | I11: D | J11: E | K11: F | L11: G | M11: H | N11: I | O11: J | P11: K | Q11: L | R11: M | S11: N | T11: O | U11: P
G12: Other Funds | K12: MHSA Funds
F13: Total | G13: Medi-Cal FFP | H13: 1991 Realignment | I13: Behavioral Health Subaccount | J13: Other Funding | K13: Total MHSA PEI (Including MHSA Interest) | L13: MHSA Interest | M13: MHSA PEI 2016-17 | N13: MHSA PEI 2015-16 | O13: MHSA PEI 2014-15 | P13: MHSA PEI 2013-14 | Q13: MHSA PEI 2012-13 | R13: MHSA PEI 2011-12 | S13: MHSA PEI 2010-11 | T13: MHSA PEI 2009-10 | U13: MHSA PEI 2008-09
B14: 1 | C14: PEI Annual Planning Costs | F14: =SUM(G14:J14,K14) -> 66040.18 | G14: =SUM(169365*0.37)*0.25 -> 15666.2625 | K14: =SUM(L14,M14:U14) -> 50373.9175 | L14: =95318.96-SUM(L15+L16+L18+R42) -> 16116.6275 | N14: =26011.67+40028.51-SUM(G14+L14) -> 34257.29
B15: 2 | C15: PEI Evaluation Costs | F15: =SUM(G15:J15,K15) -> 17800.73 | G15: =SUM(169365*0.37)*0.17 -> 10653.0585 | K15: =SUM(L15,M15:U15) -> 7147.6715 | L15: =17800.73-G15 -> 7147.6715
B16: 3 | C16: PEI Administration Costs | F16: =SUM(G16:J16,K16) -> 61308.25 | G16: =SUM(169365*0.37)*0.58 -> 36345.729 | K16: 24962.521 | L16: =61308.25-G16 -> 24962.521
B17: 4 | C17: PEI Funds Expended by CalMHSA for PEI SW | F17: =SUM(G17:J17,K17) -> 0 | K17: 0
B18: 5 | C18: PEI Funds Transferred to JPA | F18: =SUM(G18:J18,K18) -> 8198.31 | K18: 8198.31 | N18: 8198.31
B19: 6 | C19: PEI Expenditure Incurred by JPA | F19: =SUM(G19:J19,K19) -> 0 | K19: 0
B20: 7 | C20: PEI Program Expenditures | F20: =SUM(G20:J20,K20) -> 1501072.02 | G20: =SUMIF($G$37:$G$66,"Combined Summary",M$37:M$66) + SUMIF($F$37:$F$66,"Standalone",M$37:M$66) -> 0 | H20: 0 | I20: 0 | J20: 0 | K20: 1501072.02 | L20: 47092.14 | M20: 0 | N20: 373040.88 | O20: 1080939 | P20: 0 | Q20: 0 | R20: 0 | S20: 0 | T20: 0 | U20: 0
B21: 8 | C21: Total PEI Expenditures (Excluding Transfers and PEI SW) | F21: =SUM(F14:F16,F19:F20) -> 1646221.18 | G21: =SUM(G14:G16,G19:G20) -> 62665.05 | H21: 0 | I21: 0 | J21: 0 | K21: =SUM(K14:K16,K19:K20) -> 1583556.13 | L21: =SUM(L14:L16,L19:L20) -> 95318.96 | M21: =SUM(M14:M16,M19:M20) -> 0 | N21: =SUM(N14:N16,N19:N20) -> 407298.17 | O21: =SUM(O14:O16,O19:O20) -> 1080939 | P21: =SUM(P14:P16,P19:P20) -> 0 | Q21: =SUM(Q14:Q16,Q19:Q20) -> 0 | R21: =SUM(R14:R16,R19:R20) -> 0 | S21: =SUM(S14:S16,S19:S20) -> 0 | T21: =SUM(T14:T16,T19:T20) -> 0 | U21: =SUM(U14:U16,U19:U20) -> 0
B22: 9 | C22: Total MHSA PEI Available for Expenditures | K22: =SUM(L22,M22:U22) -> 3444242.472 | L22: ='2. Component Summary'!E27+'2. Component Summary'!E32 -> 95481.94 | M22: ='2. Component Summary'!E30+'2. Component Summary'!E31 -> 1240453.532 | N22: ='2. Component Summary'!E26 -> 1027368 | O22: ='2. Component Summary'!E25 -> 1080939 | P22: ='2. Component Summary'!E24 -> 0 | Q22: ='2. Component Summary'!E23 -> 0 | R22: ='2. Component Summary'!E22 -> 0 | S22: ='2. Component Summary'!E21 -> 0 | T22: ='2. Component Summary'!E20 -> 0 | U22: ='2. Component Summary'!E19 -> 0
B24: SECTION TWO
F26: A | G26: B
F27: Percent Expended for Clients 25 and Under, All PEI | G27: Percent Expended for Clients 25 and Under, JPA
B30: 1 | C30: MHSA PEI Fund Expenditures in Program to Clients 25 and Under (calculated from weighted program values) divided by Total MHSA PEI Expenditures | F30: =IF(K21=0,"",((SUMPRODUCT($K$37:$K$66,$Q$37:$Q$66)+(K19*G30))/$K$21)) -> 0
B32: SECTION THREE
C34: A | D34: B | E34: C | F34: D | G34: E | H34: F | I34: G | J34: H | K34: I | L34: J | M34: K | N34: L | O34: M | P34: N | Q34: O | R34: P | S34: Q | T34: R | U34: S | V34: T | W34: U | X34: V | Y34: W | Z34: X | AA34: Y
C35: PEI Component | M35: Other Funds | Q35: MHSA Funds
B36: # | C36: County | D36: Program Name | E36: Prior Program Name | F36: Combined/ Standalone | G36: Program Type | H36: Program Activity Name (in Combined Program) | I36: Subtotal Percentage for Combined Program | J36: % of PEI Expended on Clients 25 & Under (Standalone and Program Activities in Combined Program) | K36: % of PEI Expended on Clients 25 & Under (Combined Summary and Standalone) | L36: Total PEI Program Expenditures | M36: Medi-Cal FFP | N36: 1991 Realignment | O36: Behavorial Health Subaccount | P36: Other Funding | Q36: Total MHSA PEI (Including MHSA Interest) | R36: MHSA Interest | S36: MHSA PEI 2016-17 | T36: MHSA PEI 2015-16 | U36: MHSA PEI 2014-15 | V36: MHSA PEI 2013-14 | W36: MHSA PEI 2012-13 | X36: MHSA PEI 2011-12 | Y36: MHSA PEI 2010-11 | Z36: MHSA PEI 2009-10 | AA36: MHSA PEI 2008-09
B37: 1 | C37: =IF(AND(NOT(COUNTA(D37:J37)),(NOT(COUNTA(M37:P37))),(NOT(COUNTA(R37:AA37)))),"",VLOOKUP($D$7,Info_County_Code,2,FALSE)) ->  | D37: Suicide Prevention | F37: Standalone | G37: Suicide Prevention | K37: =IF(OR(G37="Combined Summary",F37="Standalone"),(SUMPRODUCT(--(D$37:D$66=D37),I$37:I$66,J$37:J$66)),"") -> 0 | L37: =IF(AND(G37="Combined Summary",F37="Combined"),SUM(M37:Q37),IF(F37="Standalone",SUM(M37:Q37),"")) -> 239682.77 | Q37: =SUM(R37,S37:AA37) -> 239682.77 | U37: 239682.77
B38: 2 | D38: Stigma & Discrimination Reduction | F38: Standalone | G38: Stigma & Discrimination Reduction | K38: 0 | L38: =IF(AND(G38="Combined Summary",F38="Combined"),SUM(M38:Q38),IF(F38="Standalone",SUM(M38:Q38),"")) -> 183056.65 | Q38: =SUM(R38,S38:AA38) -> 183056.65 | U38: 183056.65
B39: 3 | D39: Hope Center | F39: Standalone | G39: Access and Linkage | K39: 0 | L39: 273766.52 | Q39: 273766.52 | U39: 273766.52
B40: 4 | D40: Transitional Age Youth (TAY) | F40: Standalone | G40: Improving Timely Access | K40: 0 | L40: 412320.26 | Q40: 412320.26 | T40: =412320.26-U40 -> 27887.2 | U40: =1080939-SUM(U37+U38+U39) -> 384433.06
B41: 5 | D41: Parent Partnership Program | F41: Standalone | G41: Access and Linkage | K41: 0 | L41: 241467.8 | Q41: 241467.8 | T41: 241467.8
B42: 6 | D42: Multi-Tiered Support Structure | F42: Standalone | G42: Early Intervention | K42: 0 | L42: 150778.02 | Q42: 150778.02 | R42: 47092.14 | T42: =150778.02-R42 -> 103685.88
B43: 7 | Q43: 0
B44: 8 | Q44: 0
B45: 9 | Q45: 0
B46: 10 | Q46: 0
B47: 11 | Q47: 0
B48: 12 | Q48: 0
B49: 13 | Q49: 0
B50: 14 | Q50: 0
B51: 15 | Q51: 0
B52: 16 | Q52: 0
B53: 17 | Q53: 0
B54: 18 | Q54: 0
B55: 19 | Q55: 0
B56: 20 | Q56: 0
B57: 21 | Q57: 0
B58: 22 | Q58: 0
B59: 23 | Q59: 0
B60: 24 | Q60: 0
B61: 25 | Q61: 0
B62: 26 | Q62: 0
B63: 27 | Q63: 0
B64: 28 | Q64: 0
B65: 29 | Q65: 0
B66: 30 | Q66: 0

Sheet 5. INN
B1: Back to Summary
B3: Annual Mental Health Services Act Revenue and Expenditure Report for
B4: Fiscal Year 2016-17
B5: Innovation (INN) Summary
B7: County: | D7: =IF(ISBLANK('1. Information'!D6),"",'1. Information'!D6) ->  | F7: Date: | G7: =IF(ISBLANK('1. Information'!D5),"",'1. Information'!D5) -> 2018-04-02
B9: SECTION ONE
F11: A | G11: B | H11: C | I11: D | J11: E | K11: F | L11: G | M11: H | N11: I | O11: J | P11: K | Q11: L | R11: M | S11: N | T11: O | U11: P
G12: Other Funds | K12: MHSA INN Fiscal Year
F13: Total | G13: Medi-Cal FFP | H13: 1991 Realignment | I13: Behavioral Health Subaccount | J13: Other Funding | K13: Total MHSA INN (Including MHSA Interest) | L13: MHSA Interest | M13: MHSA INN 2016-17 | N13: MHSA INN 2015-16 | O13: MHSA INN 2014-15 | P13: MHSA INN 2013-14 | Q13: MHSA INN 2012-13 | R13: MHSA INN 2011-12 | S13: MHSA INN 2010-11 | T13: MHSA INN 2009-10 | U13: MHSA INN 2008-09
B14: 1 | C14: INN Annual Planning Costs | F14: =SUM(G14:J14,K14) -> 12000.47 | G14: =SUM(169365*0.17)*0.25 -> 7198.0125 | K14: =SUM(L14,M14:U14) -> 4802.4575 | O14: =12000.47-G14 -> 4802.4575
B15: 2 | C15: INN Indirect Administration | F15: =SUM(G15:J15,K15) -> 28284.54 | G15: =SUM(169365*0.17)*0.58 -> 16699.389 | K15: =SUM(L15,M15:U15) -> 11585.151 | O15: =28284.54-G15 -> 11585.151
B16: 3 | C16: INN Project Administration | F16: 0 | G16: =SUMIF($J$28:$J$87,"Project Administration",L$28:L$87) -> 0 | H16: =SUMIF($J$28:$J$87,"Project Administration",M$28:M$87) -> 0 | I16: =SUMIF($J$28:$J$87,"Project Administration",N$28:N$87) -> 0 | J16: =SUMIF($J$28:$J$87,"Project Administration",O$28:O$87) -> 0 | K16: 0 | L16: =SUMIF($J$28:$J$87,"Project Administration",Q$28:Q$87) -> 0 | M16: 0 | N16: 0 | O16: 0 | P16: 0 | Q16: 0 | R16: 0 | S16: 0 | T16: 0 | U16: 0
B17: 4 | C17: INN Project Evaluation | F17: 8212.36 | G17: =SUMIF($J$28:$J$87,"Project Evaluation",L$28:L$87) -> 4894.6485 | H17: =SUMIF($J$28:$J$87,"Project Evaluation",M$28:M$87) -> 0 | I17: =SUMIF($J$28:$J$87,"Project Evaluation",N$28:N$87) -> 0 | J17: =SUMIF($J$28:$J$87,"Project Evaluation",O$28:O$87) -> 0 | K17: 3317.7115 | L17: =SUMIF($J$28:$J$87,"Project Evaluation",Q$28:Q$87) -> 0 | M17: 0 | N17: 0 | O17: 3317.7115 | P17: 0 | Q17: 0 | R17: 0 | S17: 0 | T17: 0 | U17: =SUMIF($J$28:$J$53,"Project Evaluation",Z$28:Z$53) -> 0
B18: 5 | C18: INN Project Direct | F18: 714769 | G18: =SUMIF($J$28:$J$87,"Project Direct",L$28:L$87) -> 59730 | H18: =SUMIF($J$28:$J$87,"Project Direct",M$28:M$87) -> 0 | I18: =SUMIF($J$28:$J$87,"Project Direct",N$28:N$87) -> 0 | J18: =SUMIF($J$28:$J$87,"Project Direct",O$28:O$87) -> 0 | K18: 655039 | L18: =SUMIF($J$28:$J$87,"Project Direct",Q$28:Q$87) -> 13620.4 | M18: 0 | N18: 0 | O18: 241325.6 | P18: 223001 | Q18: 177092 | R18: 0 | S18: 0 | T18: 0 | U18: =SUMIF($J$28:$J$53,"Project Direct",Z$28:Z$53) -> 0
B19: 6 | C19: INN Project Subtotal | F19: =SUM(F16:F18) -> 722981.36 | G19: =SUM(G16:G18) -> 64624.6485 | H19: =SUM(H16:H18) -> 0 | I19: =SUM(I16:I18) -> 0 | J19: =SUM(J16:J18) -> 0 | K19: =SUM(L19,M19:U19) -> 658356.7115 | L19: =SUM(L16:L18) -> 13620.4 | M19: =SUM(M16:M18) -> 0 | N19: =SUM(N16:N18) -> 0 | O19: =SUM(O16:O18) -> 244643.3115 | P19: =SUM(P16:P18) -> 223001 | Q19: =SUM(Q16:Q18) -> 177092 | R19: =SUM(R16:R18) -> 0 | S19: =SUM(S16:S18) -> 0 | T19: =SUM(T16:T18) -> 0 | U19: =SUM(U16:U18) -> 0
B20: 7 | C20: Total Innovation Expenditures | F20: =SUM(F14:F15,F16:F18) -> 763266.37 | G20: 88522.05 | H20: 0 | I20: 0 | J20: 0 | K20: 674744.32 | L20: 13620.4 | M20: 0 | N20: 0 | O20: 261030.92 | P20: 223001 | Q20: 177092 | R20: 0 | S20: 0 | T20: 0 | U20: 0
B21: 8 | C21: Total MHSA INN Available for Expenditures | K21: =SUM(L21,M21:U21) -> 1338560.39 | L21: ='2. Component Summary'!F27+'2. Component Summary'!F32 -> 43040.25 | M21: ='2. Component Summary'!F30+'2. Component Summary'!F31 -> 326435.14 | N21: ='2. Component Summary'!F26 -> 256842 | O21: ='2. Component Summary'!F25 -> 312150 | P21: ='2. Component Summary'!F24 -> 223001 | Q21: ='2. Component Summary'!F23 -> 177092 | R21: ='2. Component Summary'!F22 -> 0 | S21: ='2. Component Summary'!F21 -> 0 | T21: ='2. Component Summary'!F20 -> 0 | U21: ='2. Component Summary'!F19 -> 0
B23: SECTION TWO
C25: A | D25: B | E25: C | F25: D | G25: E | H25: F | I25: G | J25: H | K25: I | L25: J | M25: K | N25: L | O25: M | P25: N | Q25: O | R25: P | S25: Q | T25: R | U25: S | V25: T | W25: U | X25: V | Y25: W | Z25: X
C26: INN Component | L26: Other Funds | P26: MHSA Funds
B27: # | C27: County | D27: Project Name | E27: Prior Project Name | F27: Project MHSOAC Approval Date | G27: Project Start Date | H27: MHSOAC-Authorized MHSA INN Project Budget | I27: Amended MHSOAC-Authorized MHSA INN Project Budget | J27: Project Expenditure Type | K27: Total Project Expenditures by Type | L27: Medi-Cal FFP | M27: 1991 Realignment | N27: BH Subaccount | O27: Other | P27: Total MHSA INN Funds (Including MHSA Interest) | Q27: MHSA Interest | R27: MHSA INN 2016-17 | S27: MHSA INN 2015-16 | T27: MHSA INN 2014-15 | U27: MHSA INN 2013-14 | V27: MHSA INN 2012-13 | W27: MHSA INN 2011-12 | X27: MHSA INN 2010-11 | Y27: MHSA INN 2009-10 | Z27: MHSA INN 2008-09
B28: 1 | C28: =IF(AND(NOT(COUNTA(D28:I28)),(NOT(COUNTA(L28:O28))),(NOT(COUNTA(R28:Z28)))),"",VLOOKUP($D$7,Info_County_Code,2,FALSE)) ->  | D28: Rapid re-Housing | F28: 1905-07-07 | G28: 1905-07-07 | H28: 650000 | J28: Project Administration | K28: =SUM(L28:O28,P28) -> 0 | P28: =SUM(Q28,R28:Z28) -> 0
B29: 1 | C29: =IF(ISBLANK(C28),"",C28) ->  | D29: Rapid re-Housing | F29: 1905-07-07 | G29: 1905-07-07 | H29: 650000 | J29: Project Evaluation | K29: 0 | P29: =SUM(Q29,R29:Z29) -> 0
B30: 1 | C30: =IF(ISBLANK(C28),"",C28) ->  | D30: Rapid re-Housing | F30: 1905-07-07 | G30: 1905-07-07 | H30: 650000 | J30: Project Direct | K30: 240691 | P30: 240691 | U30: =240691-V30 -> 63599 | V30: 177092
B31: 1 | C31: =IF(ISBLANK(C28),"",C28) ->  | D31: Rapid re-Housing | F31: 1905-07-07 | G31: 1905-07-07 | H31: 650000 | J31: Project Subtotal | K31: 240691 | L31: =SUM(L28:L30) -> 0 | M31: =SUM(M28:M30) -> 0 | N31: 0 | O31: 0 | P31: 240691 | Q31: 0 | R31: =SUM(R28:R30) -> 0 | S31: =SUM(S28:S30) -> 0 | T31: =SUM(T28:T30) -> 0 | U31: =SUM(U28:U30) -> 63599 | V31: =SUM(V28:V30) -> 177092 | W31: =SUM(W28:W30) -> 0 | X31: =SUM(X28:X30) -> 0 | Y31: =SUM(Y28:Y30) -> 0 | Z31: =SUM(Z28:Z30) -> 0
B32: 2 | C32: =IF(AND(NOT(COUNTA(D32:I32)),(NOT(COUNTA(L32:O32))),(NOT(COUNTA(R32:Z32)))),"",VLOOKUP($D$7,Info_County_Code,2,FALSE)) ->  | D32: MIST | F32: 1905-07-06 | G32: 1905-07-06 | H32: 200000 | J32: =IF(NOT(ISBLANK(D32)),$J$28,"") -> Project Administration | K32: 0 | P32: 0
B33: 2 | C33: =IF(ISBLANK(C32),"",C32) ->  | D33: MIST | F33: 1905-07-06 | G33: 1905-07-06 | H33: 200000 | J33: =IF(NOT(ISBLANK(D32)),$J$29,"") -> Project Evaluation | K33: 8212.36 | L33: =SUM(169365*0.17)*0.17 -> 4894.6485 | P33: 3317.7115 | T33: =8212.36-L33 -> 3317.7115
B34: 2 | C34: =IF(ISBLANK(C32),"",C32) ->  | D34: MIST | F34: 1905-07-06 | G34: 1905-07-06 | H34: 200000 | J34: =IF(NOT(ISBLANK(D32)),$J$30,"") -> Project Direct | K34: 474078 | L34: 59730 | P34: 414348 | Q34: 13620.4 | T34: =414348-U34-Q34 -> 241325.6 | U34: =223001-U30 -> 159402
B35: 2 | C35: =IF(ISBLANK(C32),"",C32) ->  | D35: MIST | F35: 1905-07-06 | G35: 1905-07-06 | H35: 200000 | J35: =IF(NOT(ISBLANK(D32)),$J$31,"") -> Project Subtotal | K35: 482290.36 | L35: =SUM(L32:L34) -> 64624.6485 | M35: =SUM(M32:M34) -> 0 | N35: =SUM(N32:N34) -> 0 | O35: =SUM(O32:O34) -> 0 | P35: 417665.7115 | Q35: =SUM(Q32:Q34) -> 13620.4 | R35: =SUM(R32:R34) -> 0 | S35: =SUM(S32:S34) -> 0 | T35: =SUM(T32:T34) -> 244643.3115 | U35: =SUM(U32:U34) -> 159402 | V35: =SUM(V32:V34) -> 0 | W35: =SUM(W32:W34) -> 0 | X35: =SUM(X32:X34) -> 0 | Y35: =SUM(Y32:Y34) -> 0 | Z35: =SUM(Z32:Z34) -> 0
B36: 3 | C36: =IF(AND(NOT(COUNTA(D36:I36)),(NOT(COUNTA(L36:O36))),(NOT(COUNTA(R36:Z36)))),"",VLOOKUP($D$7,Info_County_Code,2,FALSE)) ->  | J36: =IF(NOT(ISBLANK(D36)),$J$28,"") ->  | K36: 0 | P36: 0
B37: 3 | C37: =IF(ISBLANK(C36),"",C36) ->  | J37: =IF(NOT(ISBLANK(D36)),$J$29,"") ->  | K37: 0 | P37: 0
B38: 3 | C38: =IF(ISBLANK(C36),"",C36) ->  | J38: =IF(NOT(ISBLANK(D36)),$J$30,"") ->  | K38: 0 | P38: 0
B39: 3 | C39: =IF(ISBLANK(C36),"",C36) ->  | J39: =IF(NOT(ISBLANK(D36)),$J$31,"") ->  | K39: 0 | L39: =SUM(L36:L38) -> 0 | M39: =SUM(M36:M38) -> 0 | N39: =SUM(N36:N38) -> 0 | O39: =SUM(O36:O38) -> 0 | P39: 0 | Q39: =SUM(Q36:Q38) -> 0 | R39: =SUM(R36:R38) -> 0 | S39: =SUM(S36:S38) -> 0 | T39: =SUM(T36:T38) -> 0 | U39: =SUM(U36:U38) -> 0 | V39: =SUM(V36:V38) -> 0 | W39: =SUM(W36:W38) -> 0 | X39: =SUM(X36:X38) -> 0 | Y39: =SUM(Y36:Y38) -> 0 | Z39: =SUM(Z36:Z38) -> 0
B40: 4 | C40: =IF(AND(NOT(COUNTA(D40:I40)),(NOT(COUNTA(L40:O40))),(NOT(COUNTA(R40:Z40)))),"",VLOOKUP($D$7,Info_County_Code,2,FALSE)) ->  | J40: =IF(NOT(ISBLANK(D40)),$J$28,"") ->  | K40: 0 | P40: 0
B41: 4 | C41: =IF(ISBLANK(C40),"",C40) ->  | J41: =IF(NOT(ISBLANK(D40)),$J$29,"") ->  | K41: 0 | P41: 0
B42: 4 | C42: =IF(ISBLANK(C40),"",C40) ->  | J42: =IF(NOT(ISBLANK(D40)),$J$30,"") ->  | K42: 0 | P42: 0
B43: 4 | C43: =IF(ISBLANK(C40),"",C40) ->  | J43: =IF(NOT(ISBLANK(D40)),$J$31,"") ->  | K43: 0 | L43: =SUM(L40:L42) -> 0 | M43: =SUM(M40:M42) -> 0 | N43: =SUM(N40:N42) -> 0 | O43: =SUM(O40:O42) -> 0 | P43: 0 | Q43: =SUM(Q40:Q42) -> 0 | R43: =SUM(R40:R42) -> 0 | S43: =SUM(S40:S42) -> 0 | T43: =SUM(T40:T42) -> 0 | U43: =SUM(U40:U42) -> 0 | V43: =SUM(V40:V42) -> 0 | W43: =SUM(W40:W42) -> 0 | X43: =SUM(X40:X42) -> 0 | Y43: =SUM(Y40:Y42) -> 0 | Z43: =SUM(Z40:Z42) -> 0
B44: 5 | C44: =IF(AND(NOT(COUNTA(D44:I44)),(NOT(COUNTA(L44:O44))),(NOT(COUNTA(R44:Z44)))),"",VLOOKUP($D$7,Info_County_Code,2,FALSE)) ->  | J44: =IF(NOT(ISBLANK(D44)),$J$28,"") ->  | K44: 0 | P44: 0
B45: 5 | C45: =IF(ISBLANK(C44),"",C44) ->  | J45: =IF(NOT(ISBLANK(D44)),$J$29,"") ->  | K45: 0 | P45: 0
B46: 5 | C46: =IF(ISBLANK(C44),"",C44) ->  | J46: =IF(NOT(ISBLANK(D44)),$J$30,"") ->  | K46: 0 | P46: 0
B47: 5 | C47: =IF(ISBLANK(C44),"",C44) ->  | J47: =IF(NOT(ISBLANK(D44)),$J$31,"") ->  | K47: 0 | L47: =SUM(L44:L46) -> 0 | M47: =SUM(M44:M46) -> 0 | N47: =SUM(N44:N46) -> 0 | O47: =SUM(O44:O46) -> 0 | P47: 0 | Q47: =SUM(Q44:Q46) -> 0 | R47: =SUM(R44:R46) -> 0 | S47: =SUM(S44:S46) -> 0 | T47: =SUM(T44:T46) -> 0 | U47: =SUM(U44:U46) -> 0 | V47: =SUM(V44:V46) -> 0 | W47: =SUM(W44:W46) -> 0 | X47: =SUM(X44:X46) -> 0 | Y47: =SUM(Y44:Y46) -> 0 | Z47: =SUM(Z44:Z46) -> 0
B48: 6 | C48: =IF(AND(NOT(COUNTA(D48:I48)),(NOT(COUNTA(L48:O48))),(NOT(COUNTA(R48:Z48)))),"",VLOOKUP($D$7,Info_County_Code,2,FALSE)) ->  | J48: =IF(NOT(ISBLANK(D48)),$J$28,"") ->  | K48: 0 | P48: 0
B49: 6 | C49: =IF(ISBLANK(C48),"",C48) ->  | J49: =IF(NOT(ISBLANK(D48)),$J$29,"") ->  | K49: 0 | P49: 0
B50: 6 | C50: =IF(ISBLANK(C48),"",C48) ->  | J50: =IF(NOT(ISBLANK(D48)),$J$30,"") ->  | K50: 0 | P50: 0
B51: 6 | C51: =IF(ISBLANK(C48),"",C48) ->  | J51: =IF(NOT(ISBLANK(D48)),$J$31,"") ->  | K51: 0 | L51: =SUM(L48:L50) -> 0 | M51: =SUM(M48:M50) -> 0 | N51: =SUM(N48:N50) -> 0 | O51: =SUM(O48:O50) -> 0 | P51: 0 | Q51: =SUM(Q48:Q50) -> 0 | R51: =SUM(R48:R50) -> 0 | S51: =SUM(S48:S50) -> 0 | T51: =SUM(T48:T50) -> 0 | U51: =SUM(U48:U50) -> 0 | V51: =SUM(V48:V50) -> 0 | W51: =SUM(W48:W50) -> 0 | X51: =SUM(X48:X50) -> 0 | Y51: =SUM(Y48:Y50) -> 0 | Z51: =SUM(Z48:Z50) -> 0
B52: 7 | C52: =IF(AND(NOT(COUNTA(D52:I52)),(NOT(COUNTA(L52:O52))),(NOT(COUNTA(R52:Z52)))),"",VLOOKUP($D$7,Info_County_Code,2,FALSE)) ->  | J52: =IF(NOT(ISBLANK(D52)),$J$28,"") ->  | K52: 0 | P52: 0
B53: 7 | C53: =IF(ISBLANK(C52),"",C52) ->  | J53: =IF(NOT(ISBLANK(D52)),$J$29,"") ->  | K53: 0 | P53: 0
B54: 7 | C54: =IF(ISBLANK(C52),"",C52) ->  | J54: =IF(NOT(ISBLANK(D52)),$J$30,"") ->  | K54: 0 | P54: 0
B55: 7 | C55: =IF(ISBLANK(C52),"",C52) ->  | J55: =IF(NOT(ISBLANK(D52)),$J$31,"") ->  | K55: 0 | L55: =SUM(L52:L54) -> 0 | M55: =SUM(M52:M54) -> 0 | N55: =SUM(N52:N54) -> 0 | O55: =SUM(O52:O54) -> 0 | P55: 0 | Q55: =SUM(Q52:Q54) -> 0 | R55: =SUM(R52:R54) -> 0 | S55: =SUM(S52:S54) -> 0 | T55: =SUM(T52:T54) -> 0 | U55: =SUM(U52:U54) -> 0 | V55: =SUM(V52:V54) -> 0 | W55: =SUM(W52:W54) -> 0 | X55: =SUM(X52:X54) -> 0 | Y55: =SUM(Y52:Y54) -> 0 | Z55: =SUM(Z52:Z54) -> 0
B56: 8 | C56: =IF(AND(NOT(COUNTA(D56:I56)),(NOT(COUNTA(L56:O56))),(NOT(COUNTA(R56:Z56)))),"",VLOOKUP($D$7,Info_County_Code,2,FALSE)) ->  | J56: =IF(NOT(ISBLANK(D56)),$J$28,"") ->  | K56: 0 | P56: 0
B57: 8 | C57: =IF(ISBLANK(C56),"",C56) ->  | J57: =IF(NOT(ISBLANK(D56)),$J$29,"") ->  | K57: 0 | P57: 0
B58: 8 | C58: =IF(ISBLANK(C56),"",C56) ->  | J58: =IF(NOT(ISBLANK(D56)),$J$30,"") ->  | K58: 0 | P58: 0
B59: 8 | C59: =IF(ISBLANK(C56),"",C56) ->  | J59: =IF(NOT(ISBLANK(D56)),$J$31,"") ->  | K59: 0 | L59: =SUM(L56:L58) -> 0 | M59: =SUM(M56:M58) -> 0 | N59: =SUM(N56:N58) -> 0 | O59: =SUM(O56:O58) -> 0 | P59: 0 | Q59: =SUM(Q56:Q58) -> 0 | R59: =SUM(R56:R58) -> 0 | S59: =SUM(S56:S58) -> 0 | T59: =SUM(T56:T58) -> 0 | U59: =SUM(U56:U58) -> 0 | V59: =SUM(V56:V58) -> 0 | W59: =SUM(W56:W58) -> 0 | X59: =SUM(X56:X58) -> 0 | Y59: =SUM(Y56:Y58) -> 0 | Z59: =SUM(Z56:Z58) -> 0
B60: 9 | C60: =IF(AND(NOT(COUNTA(D60:I60)),(NOT(COUNTA(L60:O60))),(NOT(COUNTA(R60:Z60)))),"",VLOOKUP($D$7,Info_County_Code,2,FALSE)) ->  | J60: =IF(NOT(ISBLANK(D60)),$J$28,"") ->  | K60: 0 | P60: 0
B61: 9 | C61: =IF(ISBLANK(C60),"",C60) ->  | J61: =IF(NOT(ISBLANK(D60)),$J$29,"") ->  | K61: 0 | P61: 0
B62: 9 | C62: =IF(ISBLANK(C60),"",C60) ->  | J62: =IF(NOT(ISBLANK(D60)),$J$30,"") ->  | K62: 0 | P62: 0
B63: 9 | C63: =IF(ISBLANK(C60),"",C60) ->  | J63: =IF(NOT(ISBLANK(D60)),$J$31,"") ->  | K63: 0 | L63: =SUM(L60:L62) -> 0 | M63: =SUM(M60:M62) -> 0 | N63: =SUM(N60:N62) -> 0 | O63: =SUM(O60:O62) -> 0 | P63: 0 | Q63: =SUM(Q60:Q62) -> 0 | R63: =SUM(R60:R62) -> 0 | S63: =SUM(S60:S62) -> 0 | T63: =SUM(T60:T62) -> 0 | U63: =SUM(U60:U62) -> 0 | V63: =SUM(V60:V62) -> 0 | W63: =SUM(W60:W62) -> 0 | X63: =SUM(X60:X62) -> 0 | Y63: =SUM(Y60:Y62) -> 0 | Z63: =SUM(Z60:Z62) -> 0
B64: 10 | C64: =IF(AND(NOT(COUNTA(D64:I64)),(NOT(COUNTA(L64:O64))),(NOT(COUNTA(R64:Z64)))),"",VLOOKUP($D$7,Info_County_Code,2,FALSE)) ->  | J64: =IF(NOT(ISBLANK(D64)),$J$28,"") ->  | K64: 0 | P64: 0
B65: 10 | C65: =IF(ISBLANK(C64),"",C64) ->  | J65: =IF(NOT(ISBLANK(D64)),$J$29,"") ->  | K65: 0 | P65: 0
B66: 10 | C66: =IF(ISBLANK(C64),"",C64) ->  | J66: =IF(NOT(ISBLANK(D64)),$J$30,"") ->  | K66: 0 | P66: 0
B67: 10 | C67: =IF(ISBLANK(C64),"",C64) ->  | J67: =IF(NOT(ISBLANK(D64)),$J$31,"") ->  | K67: 0 | L67: =SUM(L64:L66) -> 0 | M67: =SUM(M64:M66) -> 0 | N67: =SUM(N64:N66) -> 0 | O67: =SUM(O64:O66) -> 0 | P67: 0 | Q67: =SUM(Q64:Q66) -> 0 | R67: =SUM(R64:R66) -> 0 | S67: =SUM(S64:S66) -> 0 | T67: =SUM(T64:T66) -> 0 | U67: =SUM(U64:U66) -> 0 | V67: =SUM(V64:V66) -> 0 | W67: =SUM(W64:W66) -> 0 | X67: =SUM(X64:X66) -> 0 | Y67: =SUM(Y64:Y66) -> 0 | Z67: =SUM(Z64:Z66) -> 0
B68: 11 | C68: =IF(AND(NOT(COUNTA(D68:I68)),(NOT(COUNTA(L68:O68))),(NOT(COUNTA(R68:Z68)))),"",VLOOKUP($D$7,Info_County_Code,2,FALSE)) ->  | J68: =IF(NOT(ISBLANK(D68)),$J$28,"") ->  | K68: 0 | P68: 0
B69: 11 | C69: =IF(ISBLANK(C68),"",C68) ->  | J69: =IF(NOT(ISBLANK(D68)),$J$29,"") ->  | K69: 0 | P69: 0
B70: 11 | C70: =IF(ISBLANK(C68),"",C68) ->  | J70: =IF(NOT(ISBLANK(D68)),$J$30,"") ->  | K70: 0 | P70: 0
B71: 11 | C71: =IF(ISBLANK(C68),"",C68) ->  | J71: =IF(NOT(ISBLANK(D68)),$J$31,"") ->  | K71: 0 | L71: =SUM(L68:L70) -> 0 | M71: =SUM(M68:M70) -> 0 | N71: =SUM(N68:N70) -> 0 | O71: =SUM(O68:O70) -> 0 | P71: 0 | Q71: =SUM(Q68:Q70) -> 0 | R71: =SUM(R68:R70) -> 0 | S71: =SUM(S68:S70) -> 0 | T71: =SUM(T68:T70) -> 0 | U71: =SUM(U68:U70) -> 0 | V71: =SUM(V68:V70) -> 0 | W71: =SUM(W68:W70) -> 0 | X71: =SUM(X68:X70) -> 0 | Y71: =SUM(Y68:Y70) -> 0 | Z71: =SUM(Z68:Z70) -> 0
B72: 12 | C72: =IF(AND(NOT(COUNTA(D72:I72)),(NOT(COUNTA(L72:O72))),(NOT(COUNTA(R72:Z72)))),"",VLOOKUP($D$7,Info_County_Code,2,FALSE)) ->  | J72: =IF(NOT(ISBLANK(D72)),$J$28,"") ->  | K72: 0 | P72: 0
B73: 12 | C73: =IF(ISBLANK(C72),"",C72) ->  | J73: =IF(NOT(ISBLANK(D72)),$J$29,"") ->  | K73: 0 | P73: 0
B74: 12 | C74: =IF(ISBLANK(C72),"",C72) ->  | J74: =IF(NOT(ISBLANK(D72)),$J$30,"") ->  | K74: 0 | P74: 0
B75: 12 | C75: =IF(ISBLANK(C72),"",C72) ->  | J75: =IF(NOT(ISBLANK(D72)),$J$31,"") ->  | K75: 0 | L75: =SUM(L72:L74) -> 0 | M75: =SUM(M72:M74) -> 0 | N75: =SUM(N72:N74) -> 0 | O75: =SUM(O72:O74) -> 0 | P75: 0 | Q75: =SUM(Q72:Q74) -> 0 | R75: =SUM(R72:R74) -> 0 | S75: =SUM(S72:S74) -> 0 | T75: =SUM(T72:T74) -> 0 | U75: =SUM(U72:U74) -> 0 | V75: =SUM(V72:V74) -> 0 | W75: =SUM(W72:W74) -> 0 | X75: =SUM(X72:X74) -> 0 | Y75: =SUM(Y72:Y74) -> 0 | Z75: =SUM(Z72:Z74) -> 0
B76: 13 | C76: =IF(AND(NOT(COUNTA(D76:I76)),(NOT(COUNTA(L76:O76))),(NOT(COUNTA(R76:Z76)))),"",VLOOKUP($D$7,Info_County_Code,2,FALSE)) ->  | J76: =IF(NOT(ISBLANK(D76)),$J$28,"") ->  | K76: 0 | P76: 0
B77: 13 | C77: =IF(ISBLANK(C76),"",C76) ->  | J77: =IF(NOT(ISBLANK(D76)),$J$29,"") ->  | K77: 0 | P77: 0
B78: 13 | C78: =IF(ISBLANK(C76),"",C76) ->  | J78: =IF(NOT(ISBLANK(D76)),$J$30,"") ->  | K78: 0 | P78: 0
B79: 13 | C79: =IF(ISBLANK(C76),"",C76) ->  | J79: =IF(NOT(ISBLANK(D76)),$J$31,"") ->  | K79: 0 | L79: =SUM(L76:L78) -> 0 | M79: =SUM(M76:M78) -> 0 | N79: =SUM(N76:N78) -> 0 | O79: =SUM(O76:O78) -> 0 | P79: 0 | Q79: =SUM(Q76:Q78) -> 0 | R79: =SUM(R76:R78) -> 0 | S79: =SUM(S76:S78) -> 0 | T79: =SUM(T76:T78) -> 0 | U79: =SUM(U76:U78) -> 0 | V79: =SUM(V76:V78) -> 0 | W79: =SUM(W76:W78) -> 0 | X79: =SUM(X76:X78) -> 0 | Y79: =SUM(Y76:Y78) -> 0 | Z79: =SUM(Z76:Z78) -> 0
B80: 14 | C80: =IF(AND(NOT(COUNTA(D80:I80)),(NOT(COUNTA(L80:O80))),(NOT(COUNTA(R80:Z80)))),"",VLOOKUP($D$7,Info_County_Code,2,FALSE)) ->  | J80: =IF(NOT(ISBLANK(D80)),$J$28,"") ->  | K80: 0 | P80: 0
B81: 14 | C81: =IF(ISBLANK(C80),"",C80) ->  | J81: =IF(NOT(ISBLANK(D80)),$J$29,"") ->  | K81: 0 | P81: 0
B82: 14 | C82: =IF(ISBLANK(C80),"",C80) ->  | J82: =IF(NOT(ISBLANK(D80)),$J$30,"") ->  | K82: 0 | P82: 0
B83: 14 | C83: =IF(ISBLANK(C80),"",C80) ->  | J83: =IF(NOT(ISBLANK(D80)),$J$31,"") ->  | K83: 0 | L83: =SUM(L80:L82) -> 0 | M83: =SUM(M80:M82) -> 0 | N83: =SUM(N80:N82) -> 0 | O83: =SUM(O80:O82) -> 0 | P83: 0 | Q83: =SUM(Q80:Q82) -> 0 | R83: =SUM(R80:R82) -> 0 | S83: =SUM(S80:S82) -> 0 | T83: =SUM(T80:T82) -> 0 | U83: =SUM(U80:U82) -> 0 | V83: =SUM(V80:V82) -> 0 | W83: =SUM(W80:W82) -> 0 | X83: =SUM(X80:X82) -> 0 | Y83: =SUM(Y80:Y82) -> 0 | Z83: =SUM(Z80:Z82) -> 0
B84: 15 | C84: =IF(AND(NOT(COUNTA(D84:I84)),(NOT(COUNTA(L84:O84))),(NOT(COUNTA(R84:Z84)))),"",VLOOKUP($D$7,Info_County_Code,2,FALSE)) ->  | J84: =IF(NOT(ISBLANK(D84)),$J$28,"") ->  | K84: 0 | P84: 0
B85: 15 | C85: =IF(ISBLANK(C84),"",C84) ->  | J85: =IF(NOT(ISBLANK(D84)),$J$29,"") ->  | K85: 0 | P85: 0
B86: 15 | C86: =IF(ISBLANK(C84),"",C84) ->  | J86: =IF(NOT(ISBLANK(D84)),$J$30,"") ->  | K86: 0 | P86: 0
B87: 15 | C87: =IF(ISBLANK(C84),"",C84) ->  | J87: =IF(NOT(ISBLANK(D84)),$J$31,"") ->  | K87: 0 | L87: =SUM(L84:L86) -> 0 | M87: =SUM(M84:M86) -> 0 | N87: =SUM(N84:N86) -> 0 | O87: =SUM(O84:O86) -> 0 | P87: 0 | Q87: =SUM(Q84:Q86) -> 0 | R87: =SUM(R84:R86) -> 0 | S87: =SUM(S84:S86) -> 0 | T87: =SUM(T84:T86) -> 0 | U87: =SUM(U84:U86) -> 0 | V87: =SUM(V84:V86) -> 0 | W87: =SUM(W84:W86) -> 0 | X87: =SUM(X84:X86) -> 0 | Y87: =SUM(Y84:Y86) -> 0 | Z87: =SUM(Z84:Z86) -> 0

Sheet 6. WET
B1: Back to Summary
B3: Annual Mental Health Services Act Revenue and Expenditure Report
B4: Fiscal Year 2016-17
B5: Workforce Education and Training (WET) Summary
C7: County: | D7: =IF(ISBLANK('1. Information'!D6),"",'1. Information'!D6) ->  | F7: Date: | G7: =IF(ISBLANK('1. Information'!D5),"",'1. Information'!D5) -> 2018-04-02
B9: SECTION ONE
F11: A | G11: B | H11: C | I11: D | J11: E | K11: F | L11: G | M11: H | N11: I | O11: J | P11: K | Q11: L | R11: M | S11: N | T11: O | U11: P | V11: Q | W11: R
G12: Other Fund | K12: MHSA Fund
F13: Total | G13: Medi-Cal FFP | H13: 1991 Realignment | I13: Behavioral Health Subaccount | J13: Other Funding | K13: Total MHSA WET (Including Interest) | L13: MHSA Interest | M13: MHSA WET 2016-17 | N13: MHSA WET 2015-16 | O13: MHSA WET 2014-15 | P13: MHSA WET 2013-14 | Q13: MHSA WET 2012-13 | R13: MHSA WET 2011-12 | S13: MHSA WET 2010-11 | T13: MHSA WET 2009-10 | U13: MHSA WET 2008-09 | V13: MHSA WET 2007-08 | W13: MHSA WET 2006-07
B14: 1 | C14: WET Annual Planning Costs | F14: =SUM(G14:J14,K14) -> 0 | K14: =SUM(L14,M14:W14) -> 0
B15: 2 | C15: WET Evaluation Costs | F15: =SUM(G15:J15,K15) -> 0 | K15: =SUM(L15,M15:W15) -> 0
B16: 3 | C16: WET Administration Costs | F16: =SUM(G16:J16,K16) -> 0 | K16: =SUM(L16,M16:W16) -> 0
B17: 4 | C17: WET Funds Transferred to JPA | F17: =SUM(G17:J17,K17) -> 0 | K17: =SUM(L17,M17:W17) -> 0
B18: 5 | C18: WET Expenditure Incurred by JPA | F18: 0 | K18: 0
B19: 6 | C19: WET Program Expenditures | F19: =SUM(G19:J19,K19) -> 117247 | G19: =SUM(H29:H33) -> 0 | H19: 0 | I19: 0 | J19: =SUM(K29:K33) -> 0 | K19: =SUM(L19,M19:W19) -> 117247 | L19: =SUM(M29:M33) -> 6239.56 | M19: 0 | N19: 0 | O19: 0 | P19: 0 | Q19: 0 | R19: 0 | S19: 0 | T19: 0 | U19: 0 | V19: =SUM(W29:W33) -> 111007.44 | W19: =SUM(X29:X33) -> 0
B20: 7 | C20: Total WET Expenditures (Excluding Transfers to JPA) | F20: =SUM(F14:F16,F18:F19) -> 117247 | G20: =SUM(G14:G16,G18:G19) -> 0 | H20: =SUM(H14:H16,H18:H19) -> 0 | I20: 0 | J20: 0 | K20: 117247 | L20: 6239.56 | M20: 0 | N20: 0 | O20: 0 | P20: 0 | Q20: 0 | R20: 0 | S20: 0 | T20: 0 | U20: 0 | V20: 111007.44 | W20: 0
B21: 8 | C21: Total MHSA WET Available for Expenditures | K21: =SUM(L21,M21:W21) -> 324828.42 | L21: ='2. Component Summary'!G27+'2. Component Summary'!G32 -> 7485.42 | M21: ='2. Component Summary'!G30+'2. Component Summary'!G31 -> 0 | N21: ='2. Component Summary'!G26 -> 0 | O21: ='2. Component Summary'!G25 -> 0 | P21: ='2. Component Summary'!G24 -> 0 | Q21: ='2. Component Summary'!G23 -> 0 | R21: ='2. Component Summary'!G22 -> 5712 | S21: ='2. Component Summary'!G21 -> 0 | T21: ='2. Component Summary'!G20 -> 0 | U21: ='2. Component Summary'!G19 -> 0 | V21: ='2. Component Summary'!G18 -> 311631 | W21: ='2. Component Summary'!G17 -> 0
B24: SECTION TWO
C26: A | D26: B | E26: C | F26: D | G26: E | H26: F | I26: G | J26: H | K26: I | L26: J | M26: K | N26: L | O26: M | P26: N | Q26: O | R26: P | S26: Q | T26: R | U26: S | V26: T | W26: U | X26: V
C27: Wet Component | H27: Other Funds | L27: MHSA Funds
B28: # | C28: County | D28: Program Name | E28: Prior Program Name | F28: Funding Category | G28: Total WET Program Expenditures | H28: Medi-Cal FFP | I28: 1991 Realignment | J28: Behavorial Health Subaccount | K28: Other Funding | L28: Total MHSA WET (Including Interest) | M28: MHSA Interest | N28: MHSA WET 2016-17 | O28: MHSA WET 2015-16 | P28: MHSA WET 2014-15 | Q28: MHSA WET 2013-14 | R28: MHSA WET 2012-13 | S28: MHSA WET 2011-12 | T28: MHSA WET 2010-11 | U28: MHSA WET 2009-10 | V28: MHSA WET 2008-09 | W28: MHSA WET 2007-08 | X28: MHSA WET 2006-07
B29: 1 | C29: =IF(AND(NOT(COUNTA(D29:E29)),(NOT(COUNTA(H29:K29))),(NOT(COUNTA(M29:X29)))),"",VLOOKUP($D$7,Info_County_Code,2,FALSE)) ->  | F29: Workforce Staffing | G29: =SUM(H29:K29,L29) -> 0 | L29: =SUM(M29,N29:X29) -> 0
B30: 2 | C30: =IF(AND(NOT(COUNTA(D30:E30)),(NOT(COUNTA(H30:K30))),(NOT(COUNTA(M30:X30)))),"",VLOOKUP($D$7,Info_County_Code,2,FALSE)) ->  | F30: Training/Technical Assistance | G30: =SUM(H30:K30,L30) -> 117247 | L30: =SUM(M30,N30:X30) -> 117247 | M30: 6239.56 | W30: =117247-M30 -> 111007.44
B31: 3 | C31: =IF(AND(NOT(COUNTA(D31:E31)),(NOT(COUNTA(H31:K31))),(NOT(COUNTA(M31:X31)))),"",VLOOKUP($D$7,Info_County_Code,2,FALSE)) ->  | F31: MH Career Pathways | G31: =SUM(H31:K31,L31) -> 0 | L31: 0
B32: 4 | C32: =IF(AND(NOT(COUNTA(D32:E32)),(NOT(COUNTA(H32:K32))),(NOT(COUNTA(M32:X32)))),"",VLOOKUP($D$7,Info_County_Code,2,FALSE)) ->  | F32: Residency/Internship | G32: =SUM(H32:K32,L32) -> 0 | L32: 0
B33: 5 | C33: =IF(AND(NOT(COUNTA(D33:E33)),(NOT(COUNTA(H33:K33))),(NOT(COUNTA(M33:X33)))),"",VLOOKUP($D$7,Info_County_Code,2,FALSE)) ->  | F33: Financial Incentive | G33: =SUM(H33:K33,L33) -> 0 | L33: 0

Sheet 7. CFTN
B1: Back to Summary
B3: Annual Mental Health Services Act Revenue and Expenditure Report
B4: Fiscal Year 2016-17
B5: Capital Facility Technological Needs (CFTN) Summary
B7: County: | D7: =IF(ISBLANK('1. Information'!D6),"",'1. Information'!D6) ->  | F7: Date: | G7: =IF(ISBLANK('1. Information'!D5),"",'1. Information'!D5) -> 2018-04-02
B9: SECTION ONE
F11: A | G11: B | H11: C | I11: D | J11: E | K11: F | L11: G | M11: H | N11: I | O11: J | P11: K | Q11: L | R11: M | S11: N | T11: O | U11: P | V11: Q | W11: R
G12: Other Fund | K12: MHSA Funds
F13: Total | G13: Medi-Cal FFP | H13: 1991 Realignment | I13: Behavioral Health Subaccount | J13: Other Funding | K13: Total MHSA CFTN | L13: MHSA Interest | M13: MHSA CFTN 2016-17 | N13: MHSA CFTN 2015-16 | O13: MHSA CFTN 2014-15 | P13: MHSA CFTN 2013-14 | Q13: MHSA CFTN 2012-13 | R13: MHSA CFTN 2011-12 | S13: MHSA CFTN 2010-11 | T13: MHSA CFTN 2009-10 | U13: MHSA CFTN 2008-09 | V13: MHSA CFTN 2007-08 | W13: MHSA CFTN 2006-07
B14: 1 | C14: CF Annual Planning Costs | F14: =SUM(G14:J14,K14) -> 0 | K14: =SUM(L14,M14:W14) -> 0
B15: 2 | C15: TN Annual Planning Costs | F15: 0 | K15: =SUM(L15,M15:W15) -> 0
B16: 3 | C16: CF Evaluation Costs | F16: 0 | K16: 0
B17: 4 | C17: TN Evaluation Costs | F17: 0 | K17: 0
B18: 5 | C18: CF Administration | F18: 0 | K18: 0
B19: 6 | C19: TN Administration | F19: 0 | K19: 0
B20: 7 | C20: CFTN Program Expenditure | F20: 155074 | G20: =SUM(H29:H48) -> 0 | H20: =SUM(I29:I48) -> 0 | I20: =SUM(J29:J48) -> 0 | J20: =SUM(K29:K48) -> 0 | K20: 155074 | L20: =SUM(M29:M48) -> -975.19 | M20: 0 | N20: 156049.19 | O20: 0 | P20: 0 | Q20: 0 | R20: 0 | S20: 0 | T20: 0 | U20: 0 | V20: 0 | W20: 0
B21: 8 | C21: Total CFTN Expenditures | F21: =SUM(F14:F20) -> 155074 | G21: =SUM(G14:G20) -> 0 | H21: 0 | I21: 0 | J21: 0 | K21: 155074 | L21: -975.19 | M21: 0 | N21: 156049.19 | O21: 0 | P21: 0 | Q21: 0 | R21: 0 | S21: 0 | T21: 0 | U21: 0 | V21: 0 | W21: 0
B22: 9 | C22: Total MHSA CFTN Available for Expenditures | K22: =SUM(L22,M22:W22) -> 211404.81 | L22: ='2. Component Summary'!H27+'2. Component Summary'!H32 -> -975.19 | M22: ='2. Component Summary'!H30+'2. Component Summary'!H31 -> 0 | N22: ='2. Component Summary'!H26 -> 212380 | O22: ='2. Component Summary'!H25 -> 0 | P22: ='2. Component Summary'!H24 -> 0 | Q22: ='2. Component Summary'!H23 -> 0 | R22: ='2. Component Summary'!H22 -> 0 | S22: ='2. Component Summary'!H21 -> 0 | T22: ='2. Component Summary'!H20 -> 0 | U22: ='2. Component Summary'!H19 -> 0 | V22: ='2. Component Summary'!H18 -> 0 | W22: ='2. Component Summary'!H17 -> 0
B24: SECTION TWO
C26: A | D26: B | E26: C | F26: D | G26: E | H26: F | I26: G | J26: H | K26: I | L26: J | M26: K | N26: L | O26: M | P26: N | Q26: O | R26: P | S26: Q | T26: R | U26: S | V26: T | W26: U | X26: V
C27: CFTN Component | H27: Other Fund | L27: MHSA Fund
B28: # | C28: County | D28: Project Name | E28: Prior Project Name | F28: Project Type | G28: Total Project Expenditures | H28: Medi-Cal FFP | I28: 1991 Realignment | J28: Behavorial Health Subaccount | K28: Other Funding | L28: Total MHSA CFTN | M28: MHSA Interest | N28: MHSA CFTN 2016-17 | O28: MHSA CFTN 2015-16 | P28: MHSA CFTN 2014-15 | Q28: MHSA CFTN 2013-14 | R28: MHSA CFTN 2012-13 | S28: MHSA CFTN 2011-12 | T28: MHSA CFTN 2010-11 | U28: MHSA CFTN 2009-10 | V28: MHSA CFTN 2008-09 | W28: MHSA CFTN 2007-08 | X28: MHSA CFTN 2006-07
B29: 1 | C29: =IF(AND(NOT(COUNTA(D29:F29)),(NOT(COUNTA(H29:K29))),(NOT(COUNTA(M29:X29)))),"",VLOOKUP($D$7,Info_County_Code,2,FALSE)) ->  | D29: ICAIS | F29: Technological Need | G29: =SUM(H29:K29,L29) -> 155074 | L29: =SUM(M29,N29:X29) -> 155074 | M29: -975.19 | O29: =155074-M29 -> 156049.19
B30: 2 | G30: 0 | L30: =SUM(M30,N30:X30) -> 0
B31: 3 | G31: 0 | L31: 0
B32: 4 | G32: 0 | L32: 0
B33: 5 | G33: 0 | L33: 0
B34: 6 | G34: 0 | L34: 0
B35: 7 | G35: 0 | L35: 0
B36: 8 | G36: 0 | L36: 0
B37: 9 | G37: 0 | L37: 0
B38: 10 | G38: 0 | L38: 0
B39: 11 | G39: 0 | L39: 0
B40: 12 | G40: 0 | L40: 0
B41: 13 | G41: 0 | L41: 0
B42: 14 | G42: 0 | L42: 0
B43: 15 | G43: 0 | L43: 0
B44: 16 | G44: 0 | L44: 0
B45: 17 | G45: 0 | L45: 0
B46: 18 | G46: 0 | L46: 0
B47: 19 | G47: 0 | L47: 0
B48: 20 | G48: 0 | L48: 0

Sheet 8. TTACB, WET RP, HP
B1: Back to Summary
B3: Annual Mental Health Services Act Revenue and Expenditure Report
B4: Fiscal Year 2016-17
B5: TTACB, WET RP, MHSA HP Summary
B7: County: | D7: =IF(ISBLANK('1. Information'!D6),"",'1. Information'!D6) ->  | F7: Date: | G7: =IF(ISBLANK('1. Information'!D5),"",'1. Information'!D5) -> 2018-04-02
B9: SECTION ONE
C11: A | D11: B | E11: C | F11: D | G11: E | H11: F | I11: G | J11: H | K11: I | L11: J | M11: K | N11: L | O11: M | P11: N | Q11: O | R11: P | S11: Q | T11: R | U11: S | V11: T
C12: TTACB, WET RP, PE SW, HP Component | F12: Other Funds | J12: MHSA Funds
B13: # | C13: County Code | D13: Funding Type | E13: Expenditures | F13: Medi-Cal FFP | G13: 1991 Realignment | H13: Behavorial Health Subaccount | I13: Other Funding | J13: Total MHSA TTACB, WET RP, HP | K13: MHSA Interest | L13: TTACB, WET RP, HP 2016-17 | M13: TTACB, WET RP, HP 2015-16 | N13: TTACB, WET RP, HP 2014-15 | O13: TTACB, WET RP, HP 2013-14 | P13: TTACB, WET RP, HP 2012-13 | Q13: TTACB, WET RP, HP 2011-12 | R13: TTACB, WET RP, HP 2010-11 | S13: TTACB, WET RP, HP 2009-10 | T13: TTACB, WET RP, HP 2008-09 | U13: TTACB, WET RP, HP 2007-08 | V13: TTACB, WET RP, HP 2006-07
B14: 1 | C14: =IF(AND(NOT(COUNTA(F14:I14)),(NOT(COUNTA(L14:V14)))),"",VLOOKUP($D$7,Info_County_Code,2,FALSE)) ->  | D14: Training, Technical Assistance & Capacity Building (TTACB) | E14: =SUM(F14:I14,J14) -> 0 | J14: =SUM(K14,L14:V14) -> 0
B15: 2 | C15: =IF(AND(NOT(COUNTA(F15:I15)),(NOT(COUNTA(L15:V15)))),"",VLOOKUP($D$7,Info_County_Code,2,FALSE)) ->  | D15: WET Regional Partnerships (WET RP) | E15: =SUM(F15:I15,J15) -> 0 | J15: =SUM(K15,L15:V15) -> 0
B16: 3 | C16: =IF(AND(NOT(COUNTA(F16:I16)),(NOT(COUNTA(L16:V16)))),"",VLOOKUP($D$7,Info_County_Code,2,FALSE)) ->  | D16: MHSA Housing Program (Unencumbered Funds) | E16: =SUM(F16:I16,J16) -> 0 | J16: 0

Sheet 9. Adjustment (MHSA)
B1: Back to Summary
B3: Annual Mental Health Services Act Revenue and Expenditure Report
B4: Fiscal Year 2016-17
B5: Adjustments Worksheet (MHSA)
B7: County: | D7: =IF(ISBLANK('1. Information'!D6),"",'1. Information'!D6) ->  | F7: Date | G7: =IF(ISBLANK('1. Information'!D5),"",'1. Information'!D5) -> 2018-04-02
B9: SECTION ONE
C11: A | D11: B | E11: C | F11: D | G11: E
B12: # | C12: County | D12: Component | E12: Adjustment to FY | F12: Amount | G12: Reason
B13: 1 | C13: =IF(NOT(COUNTA(D13:G13)),"",VLOOKUP($D$7,Info_County_Code,2,FALSE)) ->  | D13: CSS | E13: FY 2016-17 | F13: -13042.01 | G13: Transfer FY 2011-12 interest apportionment to PR
B14: 2 | D14: PEI | E14: FY 2015-16 | F14: -8198.31 | G14: To reduce PEI available funds per transfer to JPA
B15: 3 | D15: CSS | E15: FY 2012-13 | F15: 57373 | G15: To correct component allocation
B16: 4 | D16: PEI | E16: FY 2012-13 | F16: -57373 | G16: To correct component allocation
B17: 5 | D17: CSS | E17: FY 2013-14 | F17: 44600.14 | G17: To correct component allocation
B18: 6 | D18: PEI | E18: FY 2013-14 | F18: -44600.14 | G18: To correct component allocation
B19: 7 | D19: CSS | E19: FY 2014-15 | F19: 62429.95 | G19: To correct component allocation
B20: 8 | D20: PEI | E20: FY 2014-15 | F20: -62429.95 | G20: To correct component allocation
B21: 9 | D21: CSS | E21: FY 2015-16 | F21: 51368.39 | G21: To correct component allocation
B22: 10 | D22: PEI | E22: FY 2015-16 | F22: -51368.39 | G22: To correct component allocation
C23: =IF(NOT(COUNTA(D23:G23)),"",VLOOKUP(D21,Info_County_Code,2,FALSE)) -> 
B24: SECTION TWO
C26: A | D26: B | E26: C | F26: D | G26: E
B27: # | C27: County | D27: Adjustment to | E27: Component | F27: Amount | G27: Reason
B28: 1 | C28: =IF(NOT(COUNTA(E28:G28)),"",VLOOKUP($D$7,Info_County_Code,2,FALSE)) ->  | D28: Interest
B29: 2 | C29: =IF(NOT(COUNTA(E29:G29)),"",VLOOKUP($D$7,Info_County_Code,2,FALSE)) ->  | D29: Interest
B30: 3 | C30: =IF(NOT(COUNTA(E30:G30)),"",VLOOKUP($D$7,Info_County_Code,2,FALSE)) ->  | D30: Interest
B32: SECTION THREE
C34: A | D34: B | E34: C | F34: D
B35: # | C35: County | D35: Adjustment to | E35: Amount | F35: Reason
B36: 1 | C36: =IF(NOT(COUNTA(E36:F36)),"",VLOOKUP($D$7,Info_County_Code,2,FALSE)) ->  | D36: Prudent Reserve | E36: 13042.01 | F36: FY 2011-12 interest apportionment
B37: 2 | C37: =IF(NOT(COUNTA(E37:F37)),"",VLOOKUP($D$7,Info_County_Code,2,FALSE)) ->  | D37: Prudent Reserve
B38: 3 | C38: =IF(NOT(COUNTA(E38:F38)),"",VLOOKUP($D$7,Info_County_Code,2,FALSE)) ->  | D38: Prudent Reserve

Sheet 10. Adjustment (FFP)
B1: Back to Summary
B3: Annual Mental Health Services Act Revenue and Expenditure Report
B4: Fiscal Year 2016-17
B5: FFP Revenue Adjustment
B7: County: | D7: =IF(ISBLANK('1. Information'!D6),"",'1. Information'!D6) ->  | F7: Date: | G7: =IF(ISBLANK('1. Information'!D5),"",'1. Information'!D5) -> 2018-04-02
B9: SECTION ONE
C11: A | D11: B | E11: C | F11: D | G11: E | H11: F | I11: G
B12: # | C12: County | D12: Fiscal Year | E12: Cost Report Stage | F12: Component | G12: Beginning Balance | H12: Adjustment Amount | I12: Ending Balance
B13: 1 | C13: =IF(NOT(COUNTA(G13:H13)),"",VLOOKUP($D$7,Info_County_Code,2,FALSE)) ->  | D13: FY 2006-07 | F13: CSS | I13: =SUM(G13:H13) -> 0
B14: 2 | D14: FY 2007-08 | F14: CSS | I14: =SUM(G14:H14) -> 0
B15: 3 | D15: FY 2008-09 | F15: CSS | I15: 0
B16: 4 | D16: FY 2009-10 | F16: CSS | I16: 0
B17: 5 | D17: FY 2010-11 | F17: CSS | I17: 0
B18: 6 | D18: FY 2011-12 | F18: CSS | I18: 0
B19: 7 | D19: FY 2012-13 | F19: CSS | I19: 0
B20: 8 | D20: FY 2013-14 | F20: CSS | I20: 0
B21: 9 | D21: FY 2014-15 | F21: CSS | I21: 0
B22: 10 | D22: FY 2015-16 | F22: CSS | I22: 0
B23: 11 | D23: FY 2006-07 | F23: PEI | I23: 0
B24: 12 | D24: FY 2007-08 | F24: PEI | I24: 0
B25: 13 | D25: FY 2008-09 | F25: PEI | I25: 0
B26: 14 | D26: FY 2009-10 | F26: PEI | I26: 0
B27: 15 | D27: FY 2010-11 | F27: PEI | I27: 0
B28: 16 | D28: FY 2011-12 | F28: PEI | I28: 0
B29: 17 | D29: FY 2012-13 | F29: PEI | I29: 0
B30: 18 | D30: FY 2013-14 | F30: PEI | I30: 0
B31: 19 | D31: FY 2014-15 | F31: PEI | I31: 0
B32: 20 | D32: FY 2015-16 | F32: PEI | I32: 0
B33: 21 | D33: FY 2006-07 | F33: INN | I33: 0
B34: 22 | D34: FY 2007-08 | F34: INN | I34: 0
B35: 23 | D35: FY 2008-09 | F35: INN | I35: 0
B36: 24 | D36: FY 2009-10 | F36: INN | I36: 0
B37: 25 | D37: FY 2010-11 | F37: INN | I37: 0
B38: 26 | D38: FY 2011-12 | F38: INN | I38: 0
B39: 27 | D39: FY 2012-13 | F39: INN | I39: 0
B40: 28 | D40: FY 2013-14 | F40: INN | I40: 0
B41: 29 | D41: FY 2014-15 | F41: INN | I41: 0
B42: 30 | D42: FY 2015-16 | F42: INN | I42: 0
B43: 31 | D43: FY 2006-07 | F43: WET | I43: 0
B44: 32 | D44: FY 2007-08 | F44: WET | I44: 0
B45: 33 | D45: FY 2008-09 | F45: WET | I45: 0
B46: 34 | D46: FY 2009-10 | F46: WET | I46: 0
B47: 35 | D47: FY 2010-11 | F47: WET | I47: 0
B48: 36 | D48: FY 2011-12 | F48: WET | I48: 0
B49: 37 | D49: FY 2012-13 | F49: WET | I49: 0
B50: 38 | D50: FY 2013-14 | F50: WET | I50: 0
B51: 39 | D51: FY 2014-15 | F51: WET | I51: 0
B52: 40 | D52: FY 2015-16 | F52: WET | I52: 0

Sheet 11. Comments
A1: Back to Summary
B3: Annual Mental Health Services Act Revenue and Expenditure Report
B4: Fiscal Year 2016-17
B5: Comments
C7: Comments
B8: 1
B9: 2
B10: 3
B11: 4
B12: 5
B13: 6
B14: 7
B15: 8
B16: 9
B17: 10

Sheet drop down fields
A1: Info_County_Code | C1: Info_Population | D1: CSS_Service_Category | E1: PEI_Combined_Standalone | F1: PEI_Program_Type | G1: INN_Expenditure_Type | H1: WET_Funding_Category | I1: CFTN_Project_Type | J1: Adjustment_MHSA_Component | K1: Adjustment_FY | L1: Adjustment_Reason | M1: Cost_Report_Stage
A2: Alameda | B2: 1 | C2: Yes | D2: FSP | E2: Combined | F2: Prevention | G2: Project | H2: Workforce Staffing | I2: Capital Facility | J2: CSS | K2: FY 2006-07 | L2: Cost Report Reconciliation | M2: Audited
A3: Alpine | B3: 2 | C3: No | D3: Non-FSP | E3: Standalone | F3: Early Intervention | G3: Project Administration | H3: Training/Technical Assistance | I3: Technological Need | J3: PEI | K3: FY 2007-08 | L3: Cost Report Audit | M3: Settled
A4: Amador | B4: 3 | F4: Outreach | G4: Project Evaluation | H4: MH Career Pathways | J4: INN | K4: FY 2008-09 | L4: SDMC Chart Audit | M4: Initial
A5: Berkeley City | B5: 65 | F5: Stigma & Discrimination Reduction | H5: Residency/Internship | J5: WET | K5: FY 2009-10 | L5: Local Quality Assurance Audit
A6: Butte | B6: 4 | F6: Suicide Prevention | H6: Financial Incentive | J6: CFTN | K6: FY 2010-11 | L6: Error
A7: Calaveras | B7: 5 | F7: Access and Linkage | J7: TTACB | K7: FY 2011-12 | L7: Other
A8: Colusa | B8: 6 | F8: Improving Timely Access | J8: WET RP | K8: FY 2012-13
A9: Contra Costa | B9: 7 | F9: Combined Summary | J9: PEI SW | K9: FY 2013-14
A10: Del Norte | B10: 8 | J10: MHSA HP | K10: FY 2014-15
A11: El Dorado | B11: 9 | K11: FY 2015-16
A12: Fresno | B12: 10 | K12: FY 2016-17
A13: Glenn | B13: 11
A14: Humboldt | B14: 12
A15: Imperial | B15: 13
A16: Inyo | B16: 14
A17: Kern | B17: 15
A18: Kings | B18: 16
A19: Lake | B19: 17
A20: Lassen | B20: 18
A21: Los Angeles | B21: 19
A22: Madera | B22: 20
A23: Marin | B23: 21
A24: Mariposa | B24: 22
A25: Mendocino | B25: 23
A26: Merced | B26: 24
A27: Modoc | B27: 25
A28: Mono | B28: 26
A29: Monterey | B29: 27
A30: Napa | B30: 28
A31: Nevada | B31: 29
A32: Orange | B32: 30
A33: Placer | B33: 31
A34: Plumas | B34: 32
A35: Riverside | B35: 33
A36: Sacramento | B36: 34
A37: San Benito | B37: 35
A38: San Bernardino | B38: 36
A39: San Diego | B39: 37
A40: San Francisco | B40: 38
A41: San Joaquin | B41: 39
A42: San Luis Obispo | B42: 40
A43: San Mateo | B43: 41
A44: Santa Barbara | B44: 42
A45: Santa Clara | B45: 43
A46: Santa Cruz | B46: 44
A47: Shasta | B47: 45
A48: Sierra | B48: 46
A49: Siskiyou | B49: 47
A50: Solano | B50: 48
A51: Sonoma | B51: 49
A52: Stanislaus | B52: 50
A53: Sutter/Yuba | B53: 63
A54: Tehama | B54: 52
A55: Tri-City | B55: 66
A56: Trinity | B56: 53
A57: Tulare | B57: 54
A58: Tuolumne | B58: 55
A59: Ventura | B59: 56
A60: Yolo | B60: 57

Sheet E-1 CountyState2017
D1: About the Data
A2: E-1: State/County Population Estimates with Annual Percent Change
A3: January 1, 2016 and 2017
A5: State/County | B5: Total Population | D5: Percent
B6: 2016-01-01 | C6: 2017-01-01 | D6: Change | E6: County Population: Over 200,000? (Yes or No)
A8: California | B8: 39189035 | C8: 39523613 | D8: 0.9
A10: Alameda | B10: 1629233 | C10: 1645359 | D10: 1 | E10: =IF(B10>=200000,"Yes", "No") -> Yes
A11: Alpine | B11: 1160 | C11: 1151 | D11: -0.8 | E11: =IF(B11>=200000,"Yes", "No") -> No
A12: Amador | B12: 37667 | C12: 38382 | D12: 1.9 | E12: No
A13: Butte | B13: 224703 | C13: 226404 | D13: 0.8 | E13: Yes
A14: Calaveras | B14: 45246 | C14: 45168 | D14: -0.2 | E14: No
A15: Colusa | B15: 21965 | C15: 22043 | D15: 0.4 | E15: No
A16: Contra Costa | B16: 1126824 | C16: 1139513 | D16: 1.1 | E16: Yes
A17: Del Norte | B17: 27006 | C17: 27124 | D17: 0.4 | E17: No
A18: El Dorado | B18: 184371 | C18: 185062 | D18: 0.4 | E18: No
A19: Fresno | B19: 985079 | C19: 995975 | D19: 1.1 | E19: Yes
A20: Glenn | B20: 28639 | C20: 28731 | D20: 0.3 | E20: No
A21: Humboldt | B21: 135557 | C21: 136953 | D21: 1 | E21: No
A22: Imperial | B22: 186080 | C22: 188334 | D22: 1.2 | E22: No
A23: Inyo | B23: 18632 | C23: 18619 | D23: -0.1 | E23: No
A24: Kern | B24: 886803 | C24: 895112 | D24: 0.9 | E24: Yes
A25: Kings | B25: 149822 | C25: 149537 | D25: -0.2 | E25: No
A26: Lake | B26: 64790 | C26: 64945 | D26: 0.2 | E26: No
A27: Lassen | B27: 30841 | C27: 30918 | D27: 0.2 | E27: No
A28: Los Angeles | B28: 10182961 | C28: 10241278 | D28: 0.6 | E28: Yes
A29: Madera | B29: 154933 | C29: 156492 | D29: 1 | E29: No
A30: Marin | B30: 263150 | C30: 263604 | D30: 0.2 | E30: Yes
A31: Mariposa | B31: 18167 | C31: 18148 | D31: -0.1 | E31: No
A32: Mendocino | B32: 88771 | C32: 89134 | D32: 0.4 | E32: No
A33: Merced | B33: 271547 | C33: 274665 | D33: 1.1 | E33: Yes
A34: Modoc | B34: 9620 | C34: 9580 | D34: -0.4 | E34: No
A35: Mono | B35: 13654 | C35: 13713 | D35: 0.4 | E35: No
A36: Monterey | B36: 438171 | C36: 442365 | D36: 1 | E36: Yes
A37: Napa | B37: 141888 | C37: 142408 | D37: 0.4 | E37: No
A38: Nevada | B38: 98609 | C38: 98828 | D38: 0.2 | E38: No
A39: Orange | B39: 3172152 | C39: 3194024 | D39: 0.7 | E39: Yes
A40: Placer | B40: 376203 | C40: 382837 | D40: 1.8 | E40: Yes
A41: Plumas | B41: 19837 | C41: 19819 | D41: -0.1 | E41: No
A42: Riverside | B42: 2348213 | C42: 2384783 | D42: 1.6 | E42: Yes
A43: Sacramento | B43: 1496619 | C43: 1514770 | D43: 1.2 | E43: Yes
A44: San Benito | B44: 56621 | C44: 56854 | D44: 0.4 | E44: No
A45: San Bernardino | B45: 2135724 | C45: 2160256 | D45: 1.1 | E45: Yes
A46: San Diego | B46: 3286717 | C46: 3316192 | D46: 0.9 | E46: Yes
A47: San Francisco | B47: 864889 | C47: 874228 | D47: 1.1 | E47: Yes
A48: San Joaquin | B48: 735677 | C48: 746868 | D48: 1.5 | E48: Yes
A49: San Luis Obispo | B49: 278480 | C49: 280101 | D49: 0.6 | E49: Yes
A50: San Mateo | B50: 765895 | C50: 770203 | D50: 0.6 | E50: Yes
A51: Santa Barbara | B51: 447295 | C51: 450663 | D51: 0.8 | E51: Yes
A52: Santa Clara | B52: 1922619 | C52: 1938180 | D52: 0.8 | E52: Yes
A53: Santa Cruz | B53: 275557 | C53: 276603 | D53: 0.4 | E53: Yes
A54: Shasta | B54: 178232 | C54: 178605 | D54: 0.2 | E54: No
A55: Sierra | B55: 3194 | C55: 3207 | D55: 0.4 | E55: No
A56: Siskiyou | B56: 44722 | C56: 44688 | D56: -0.1 | E56: No
A57: Solano | B57: 430972 | C57: 436023 | D57: 1.2 | E57: Yes
A58: Sonoma | B58: 502604 | C58: 505120 | D58: 0.5 | E58: Yes
A59: Stanislaus | B59: 541466 | C59: 548057 | D59: 1.2 | E59: Yes
A60: Sutter | B60: 96614 | C60: 96956 | D60: 0.4 | E60: No
A61: Tehama | B61: 63942 | C61: 63995 | D61: 0.1 | E61: No
A62: Trinity | B62: 13647 | C62: 13628 | D62: -0.1 | E62: No
A63: Tulare | B63: 466563 | C63: 471842 | D63: 1.1 | E63: Yes
A64: Tuolumne | B64: 54949 | C64: 54707 | D64: -0.4 | E64: No
A65: Ventura | B65: 853893 | C65: 857386 | D65: 0.4 | E65: Yes
A66: Yolo | B66: 215522 | C66: 218896 | D66: 1.6 | E66: Yes
A67: Yuba | B67: 74328 | C67: 74577 | D67: 0.3 | E67: No
A68: Sutter/Yuba | B68: =B60+B67 -> 170942 | C68: =C60+C67 -> 171533 | E68: No
A69: Berkeley City | B69: 119997 | C69: 121238 | E69: No
A70: Tri-City | B70: =B72+B73+B74 -> 387546 | C70: =C72+C73+C74 -> 391983 | E70: Yes
A72: Carlsbad | B72: 112866 | C72: 113725
A73: Oceanside | B73: 175842 | C73: 176461
A74: Vista | B74: 98838 | C74: 101797
A77: Department of Finance
A78: Demographic Research Unit
A79: Phone: (916) 323-4086
A81: For more information: http://www.dof.ca.gov/research/demographic/reports/estimates/e-1/view.php
A82: Released on May 1, 2017
